Cogmind - Beta 14 @@@ ROGUE MODE // 2024.09.05 @ 18:38:09 // Winter2019/RPGLIKE Player: 0Z-4NL Result: Escaped! Performance ------------- Evolutions (9) 4500 Regions Visited (31) 6200 Robots Destroyed (519) 2595 Value Destroyed (22143) 22143 Prototype IDs (87) 1740 Alien Tech Used (5) 1000 Bonus (11966) 11966 TOTAL SCORE: 50144 Bonus ------- High Alert Combat Kills 3206 Follower Combat Kills 1925 Entered Garrisons 200 Network Hubs Disabled 400 Met Data Miner 300 Acquired ECA 300 Met Zhirov 300 Met Warlord at Base 500 MAIN.C Attacked Warlord 500 Warlord Defense Kills 1146 Built Enhanced Grunts 300 A7 Reached Mainframe 300 Met R17 at Cetus 500 Met R17 at Research 2000 Win 3000 Friendly Fire -2911 Cogmind --------- Core Integrity 283/750 Matter 280/300 Energy 197/965 System Corruption 0% Temperature Warning (390) Movement Hovering (41) Location To Epsilon Eridani Parts ------- > --- POWER (2) -------- Fusion Reactor Light Antimatter Reactor > --- PROPULSION (7) --- Combat Gravmag System Combat Gravmag System Cooled Antigrav System Cooled Antigrav System Antigrav Array Cooled Linear Gravjet > --- UTILITY (10) ----- Experimental Power Amplifier Experimental Energy Well Long-range Sensor Array Experimental Signal Interpreter Experimental Armor Integrity Analyzer Improved Particle Charger Experimental Phase Shifter Improved Hacking Suite Advanced Hacking Suite System Mapper > --- WEAPON (7) ------- Vortex Shotgun Vortex Shotgun Vortex Shotgun Null Cannon Core Cannon Ragnarok Missile Launcher > --- INVENTORY (5) ---- Long-range Terrain Scanner Stasis Canceller Powered Armor Core Stripper Peak State ------------ > --- POWER ------------ Fusion Reactor Light Antimatter Reactor > --- PROPULSION ------- Combat Gravmag System Combat Gravmag System Improved Antigrav System Improved Gyrokinetic Inverter Cooled Antigrav System Cooled Antigrav System Cooled Linear Gravjet > --- UTILITY ---------- Experimental Energy Well Experimental Signal Interpreter Experimental Armor Integrity Analyzer Experimental Phase Shifter SHELL Armor Improved Hacking Suite Advanced Hacking Suite System Mapper > --- WEAPON ----------- Vortex Shotgun Vortex Shotgun Vortex Shotgun Null Cannon Core Cannon Ragnarok Missile Launcher > --- INVENTORY -------- Improved Particle Charger Stasis Canceller Powered Armor Core Stripper [Rating: 237] Favorites ----------- Power Light Angular Momentum Engine Engine Light Angular Momentum Engine Power Core Neutrino Core Reactor Light Antimatter Reactor Propulsion Compact Wheel Treads Light Treads Leg Improved Aluminum Leg Wheel Compact Wheel Hover Unit Combat Airjet Flight Unit Cooled Nuclear Pulse Thruster Utility Powered Armor Device Terrain Scanner Storage Experimental Energy Well Processor Improved Signal Interpreter Hackware Improved Hacking Suite Protection Powered Armor Weapon Enhanced Autogun Energy Gun Gatling Laser Energy Cannon Heavy Ion Cannon Ballistic Gun Enhanced Autogun Ballistic Cannon Perforator Launcher Advanced EMP Blaster Special Weapon Improved Plasma Cutter Impact Weapon Powered Hammer Slashing Weapon Axe Piercing Weapon Vortex Lance Build | -11 -10 -10 -9 -8 -8 -8 -7 -7 -7 -7 -6 -6 -6 -6 -6 -6 -5 -5 -5 -5 -4 -4 -4 -4 -4 -3 -3 -3 -2 -2 -1 ------- Run | Yrd Mat Min Mat Mat Gar Mat Fac Low Low Dat Pro Fac Ext Cet Arc Hub Fac Upp Upp War Pro Fac Upp Upp Zhi Pro Res Qua Res Tes Acc Slots Evolved 21 | . 3 . 1 3 1 6 . 1 . . 1 2 . . . . . . . . 1 . . . 1 . . . 1 . . Power 1 | . . . . . . 1 . . . . . . . . . . . . . . . . . . . . . . . . . Propulsion 5 | . . . . 1 1 . . . . . . 2 . . . . . . . . 1 . . . . . . . . . . Utility 9 | . 1 . 1 1 . 2 . 1 . . 1 . . . . . . . . . . . . . 1 . . . 1 . . Weapon 6 | . 2 . . 1 . 3 . . . . . . . . . . . . . . . . . . . . . . . . . Parts Attached 341 | . 9 9 11 21 22 19 18 3 . . 12 16 9 2 10 8 8 15 10 17 5 6 9 14 8 1 9 17 11 40 2 Power 35 | . 1 . . 2 1 2 3 2 . . 3 3 . . 2 2 2 . . 3 . . . 5 2 . 2 . . . . Engine 16 | . 1 . . . . . 2 . . . 1 1 . . 2 2 1 . . 2 . . . 4 . . . . . . . Core 13 | . . . . 2 1 2 1 2 . . 2 2 . . . . 1 . . . . . . . . . . . . . . Reactor 6 | . . . . . . . . . . . . . . . . . . . . 1 . . . 1 2 . 2 . . . . Propulsion 46 | . 1 . . 5 8 4 . . . . . 10 . . . . 3 . . 2 1 2 . 2 2 . . . 3 2 1 Treads 3 | . . . . 2 1 . . . . . . . . . . . . . . . . . . . . . . . . . . Leg 5 | . . . . 1 4 . . . . . . . . . . . . . . . . . . . . . . . . . . Wheel 10 | . 1 . . 2 3 4 . . . . . . . . . . . . . . . . . . . . . . . . . Hover 27 | . . . . . . . . . . . . 10 . . . . 3 . . 2 1 2 . 2 1 . . . 3 2 1 Flight 1 | . . . . . . . . . . . . . . . . . . . . . . . . . 1 . . . . . . Utility 160 | . 4 . 1 3 6 5 6 1 . . 7 1 7 . 7 6 3 13 8 8 4 4 9 6 4 . 6 11 7 22 1 Device 120 | . 3 . 1 1 . 1 4 1 . . 4 1 5 . 5 6 2 12 8 7 4 4 8 6 3 . 5 10 3 15 1 Storage 4 | . . . . . . . . . . . . . 1 . . . . . . . . . . . . . . 1 . 2 . Processor 11 | . 1 . . 1 . 2 2 . . . . . . . . . . . . 1 . . 1 . . . 1 . 1 1 . Hackware 5 | . . . . . . . . . . . . . . . 2 . 1 . . . . . . . 1 . . . . 1 . Protection 20 | . . . . 1 6 2 . . . . 3 . 1 . . . . 1 . . . . . . . . . . 3 3 . Artifact . | . . . . . . . . . . . . . . . . . . . . . . . . . . . . . . . . Weapon 100 | . 3 9 10 11 7 8 9 . . . 2 2 2 2 1 . . 2 2 4 . . . 1 . 1 1 6 1 16 . Energy Gun 30 | . . 2 3 . 3 3 1 . . . . . . 2 1 . . 1 1 2 . . . . . . . 3 1 7 . Energy Cannon 21 | . . . 4 5 1 . 1 . . . . 1 1 . . . . . . 1 . . . . . . . 2 . 5 . Ballistic Gun 17 | . 2 5 1 4 1 2 1 . . . 1 . . . . . . . . . . . . . . . . . . . . Ballistic Cannon 1 | . . . . . . . . . . . . . . . . . . . . . . . . . . . . . . 1 . Launcher 23 | . 1 2 2 2 2 3 4 . . . 1 . 1 . . . . 1 . . . . . . . . . 1 . 3 . Special Weapon 4 | . . . . . . . . . . . . . . . . . . . 1 . . . . 1 . 1 1 . . . . Impact Weapon 2 | . . . . . . . 2 . . . . . . . . . . . . . . . . . . . . . . . . Slashing Weapon 1 | . . . . . . . . . . . . 1 . . . . . . . . . . . . . . . . . . . Piercing Weapon 1 | . . . . . . . . . . . . . . . . . . . . 1 . . . . . . . . . . . Special Melee Weapon . | . . . . . . . . . . . . . . . . . . . . . . . . . . . . . . . . Unidentified Prototypes 46 | . . . 2 1 . 2 2 . . . 1 . 1 1 . . 1 . . 8 . . . . 4 . 1 5 1 16 . Corrupted Parts 2 | . . . . . . . . . . . . . . . 1 . . . 1 . . . . . . . . . . . . System Corruption 17 | . . . . . . . . . . . . . . . 7 . . . 10 . . . . . . . . . . . . Parts Lost 1 | . . . . . . . . . . . 1 . . . . . . . . . . . . . . . . . . . . Power 1 | . . . . . . . . . . . 1 . . . . . . . . . . . . . . . . . . . . Propulsion . | . . . . . . . . . . . . . . . . . . . . . . . . . . . . . . . . Utility . | . . . . . . . . . . . . . . . . . . . . . . . . . . . . . . . . Weapon . | . . . . . . . . . . . . . . . . . . . . . . . . . . . . . . . . Highest Loss Streak 1 | . . . . . . . . . . . 1 . . . . . . . . . . . . . . . . . . . . To Critical Strikes . | . . . . . . . . . . . . . . . . . . . . . . . . . . . . . . . . Average Slot Usage (%) 97 | . 91 99 99 91 98 99 99 100 100 100 99 97 95 95 96 100 98 95 99 99 100 97 95 98 98 100 100 96 96 95 94 Engine 3 | . 13 14 12 1 . . 2 2 . . 1 . . . 3 8 7 8 8 7 8 8 8 5 3 . . . . . . Core 3 | . . . . 8 8 10 7 7 10 10 8 6 4 4 2 . . . . . . . . . . . . . . . . Reactor 1 | . . . . . . . . . . . . . . . . . . . . . . . . 2 4 8 7 8 7 7 7 Leg 1 | . . . . . 16 . . . . . . . . . . . . . . . . . . . . . . . . . . Wheel 6 | . 13 14 12 8 3 18 16 15 15 15 15 7 . . . . . . . . . . . . . . . . . . . Hover 12 | . . . . . . . . . . . . 11 26 26 26 26 26 26 26 25 28 27 25 27 28 28 28 28 26 26 24 Device 13 | . 12 14 22 22 14 10 13 14 15 15 18 18 17 17 14 13 10 8 8 7 8 8 8 8 6 8 9 11 12 14 15 Processor 8 | . 6 14 12 9 8 9 7 10 10 10 10 9 8 8 5 4 4 4 4 5 8 8 8 8 8 8 6 4 5 7 7 Hackware 3 | . . . . . . . . . . . . . . . 5 8 10 13 13 11 8 8 8 8 9 12 12 12 11 11 11 Protection 7 | . . . . . 10 12 11 10 10 10 10 9 8 8 8 8 8 8 8 8 8 8 8 8 8 8 8 8 6 . . Energy Gun 12 | . . 18 13 1 8 19 14 10 10 10 10 9 8 10 13 13 13 12 13 16 16 16 16 16 16 14 12 11 14 13 11 Energy Cannon 3 | . . . 6 18 7 . . 5 5 5 5 3 3 1 . . . . . . . . . . . . . 2 3 4 7 Ballistic Gun 12 | . 43 22 17 17 16 15 17 15 15 15 15 14 13 13 13 13 11 8 4 . . . . . . . . . . . . Launcher 3 | . . 1 . . . 1 3 5 5 5 4 4 4 4 4 4 4 4 8 8 8 8 8 8 8 8 8 5 3 3 3 Special Weapon 1 | . . . . . . . . . . . . . . . . . . . 3 4 4 4 4 4 4 5 8 4 . . . Peak Build Rating 237 | 3 7 10 13 37 39 56 59 67 69 69 84 102 107 108 118 118 120 120 127 148 149 151 151 155 167 167 166 188 201 237 232 Average Rating 90 | 3 5 9 12 30 35 50 57 65 67 69 79 89 103 106 111 117 116 115 121 135 148 150 150 153 156 166 164 177 193 222 230 On Entrance 102 | 3 2 7 9 13 30 38 56 58 67 69 69 82 102 104 108 118 118 115 120 127 144 149 151 151 155 167 165 166 188 201 230 Naked Turns . | . . . . . . . . . . . . . . . . . . . . . . . . . . . . . . . . Heaviest Build 108 | 7 11 15 17 28 41 60 69 81 81 81 90 87 75 75 75 75 75 74 77 88 88 88 88 91 91 91 93 94 102 108 102 Greatest Support 123 | 10 16 16 16 44 38 48 48 48 48 48 48 78 78 78 78 78 83 83 83 88 100 100 96 98 98 98 98 98 98 123 104 Greatest Overweight (x) 3 | 2 1 . 1 2 3 2 1 1 1 1 1 2 . . . . . . . 1 . . . . . . . . 1 1 . Average Overweight (x) . | 1 . . . . . . 1 1 1 1 1 . . . . . . . . . . . . . . . . . . . . Largest Inventory Capacity 5 | . 2 2 2 2 2 2 2 2 3 3 3 3 3 3 4 4 4 4 4 4 4 4 4 4 4 4 4 5 5 5 5 Average Capacity 2 | . 1 2 2 2 2 2 2 2 2 3 3 3 3 3 3 4 4 4 4 4 4 4 4 4 4 4 4 4 5 5 5 Most Carried 5 | . 2 2 2 2 2 2 2 2 3 3 3 3 3 3 4 4 4 4 4 4 4 4 4 4 4 4 4 5 5 5 5 Average Carried 2 | . 1 1 1 2 1 1 1 2 2 3 3 2 2 2 3 3 4 3 3 3 4 4 4 4 3 4 3 4 4 4 5 Final Capacity 5 | . 2 2 2 2 2 2 2 2 3 3 3 3 3 3 4 4 4 4 4 4 4 4 4 4 4 4 4 5 5 5 5 Final Carried 5 | . 2 2 2 2 2 2 2 2 3 3 3 2 3 2 4 4 4 4 4 4 4 4 4 4 4 4 4 5 5 5 5 Class Distribution -------------------- 25% | Hacker-Executioner 20% | Hacker-Scout 19% | Wizard-Scout 7% | Hacker-Skirmisher 6% | Scavenger-Skirmisher 5% | Hacker-Gunner 5% | Wizard-Executioner 3% | Skirmisher Dominant Class ---------------- Skirmisher | -10/Materials Scavenger-Skirmisher | -10/Mines Hacker-Skirmisher | -9/Materials Hacker-Skirmisher | -8/Materials Hacker-Gunner | -8/Garrison Hacker-Executioner | -8/Materials Hacker-Executioner | -7/Factory Hacker-Executioner | -7/Lower Caves Hacker-Executioner | -7/Lower Caves Hacker-Executioner | -7/Data Miner Hacker-Executioner | -6/Proximity Caves Hacker-Executioner | -6/Factory Hacker-Scout | -6/Extension Commander-Scout | -6/Cetus Commander-Scout | -6/Archives Hacker-Scout | -6/Hub_04(d) Wizard-Scout | -5/Factory Wizard-Scout | -5/Upper Caves Wizard-Executioner | -5/Upper Caves Wizard-Executioner | -5/Warlord Hacker-Scout | -4/Proximity Caves Hacker-Scout | -4/Factory Hacker-Scout | -4/Upper Caves Hacker-Scout | -4/Upper Caves Hacker-Scout | -4/Zhirov Wizard-Scout | -3/Proximity Caves Wizard-Scout | -3/Research Wizard-Scout | -3/Quarantine Wizard-Scout | -2/Research Wizard-Scout | -2/Testing Wizard-Scout | -1/Access Resources | -11 -10 -10 -9 -8 -8 -8 -7 -7 -7 -7 -6 -6 -6 -6 -6 -6 -5 -5 -5 -5 -4 -4 -4 -4 -4 -3 -3 -3 -2 -2 -1 ----------- Run | Yrd Mat Min Mat Mat Gar Mat Fac Low Low Dat Pro Fac Ext Cet Arc Hub Fac Upp Upp War Pro Fac Upp Upp Zhi Pro Res Qua Res Tes Acc Matter Collected 10364 | 200 285 315 365 492 831 898 423 261 103 . 572 245 936 131 320 417 131 429 464 315 120 90 250 215 . 375 186 235 185 575 . Remotely . | . . . . . . . . . . . . . . . . . . . . . . . . . . . . . . . . Salvage Created 20001 | . 333 782 589 857 1282 2068 856 386 64 . 983 209 1899 183 254 1362 198 855 1204 208 382 310 339 208 . 1093 593 915 469 838 282 Parts 1069 | . 37 48 63 56 74 117 44 31 1 . 61 25 86 11 22 46 8 35 32 28 9 13 19 19 . 38 35 32 21 49 9 Haulers Intercepted 17 | . 2 . 4 2 . 4 1 . . . 1 . . . . 1 . . . . . . . . . . . 1 . 1 . Recyclers Shooed 10 | . 2 . . . . . 1 . . . . 1 1 . . . . . . . . . . . . . 3 1 . 1 . Parts Field Recycled . | . . . . . . . . . . . . . . . . . . . . . . . . . . . . . . . . Retrieved Matter . | . . . . . . . . . . . . . . . . . . . . . . . . . . . . . . . . Parts Self-Destructed 77 | . . . . . . . . 22 1 . 32 . . . . . . 6 2 . . . 10 3 . 1 . . . . . Prevented 131 | . . . . . . . . 5 . . 26 . . . . . . 22 23 . 9 . 4 9 . 33 . . . . . Kills | -11 -10 -10 -9 -8 -8 -8 -7 -7 -7 -7 -6 -6 -6 -6 -6 -6 -5 -5 -5 -5 -4 -4 -4 -4 -4 -3 -3 -3 -2 -2 -1 ------- Run | Yrd Mat Min Mat Mat Gar Mat Fac Low Low Dat Pro Fac Ext Cet Arc Hub Fac Upp Upp War Pro Fac Upp Upp Zhi Pro Res Qua Res Tes Acc Combat Hostiles Destroyed 394 | . 13 21 23 14 31 36 11 14 1 . 27 8 31 4 . 13 3 23 20 9 5 5 8 9 . 15 10 12 9 15 4 Guns 157 | . 13 17 14 6 17 26 6 6 1 . 12 2 9 . . 5 1 . 1 . . 5 3 . . . 3 5 2 3 . Cannons 31 | . . . 3 8 5 . . . . . . . . . . . . . . . . . . . . . . 4 2 5 4 AOE 143 | . . 4 6 . 8 10 4 8 . . 12 5 17 . . 4 2 16 9 9 3 . 4 5 . 5 3 1 1 7 . Classes Destroyed 27 | . 5 3 1 2 5 . . 1 1 . . . 1 . . 2 . 1 . 1 1 . . . . . 1 1 . 1 . Worker 24 | . . 1 2 1 . 3 1 . . . . . 7 . . 1 . . . . . . . . . . 3 1 1 3 . Builder 19 | . . . . 2 . 3 3 . . . . . 5 . . 1 . . . . . . . . . . . 1 . 4 . Tunneler 4 | . . 1 1 . . 1 . . . . . . 1 . . . . . . . . . . . . . . . . . . Hauler 17 | . 2 . 4 2 . 4 1 . . . 1 . . . . 1 . . . . . . . . . . . 1 . 1 . Recycler 16 | . 1 1 . . . 3 2 . . . . . 2 . . 4 . . . . . . . . . . 1 . . 2 . Mechanic 4 | . . . . . . . . . . . . . 2 . . . . . 1 . . . . . . . . . . 1 . Operator 10 | . . . 1 1 . . . . . . . . . . 7 . . . . . . . . . . . 1 . . . . Drone 2 | . . . . . . . . . . . . . . . . . . . . . 2 . . . . . . . . . . Watcher 23 | . 1 . 3 3 1 4 1 . . . . 1 2 2 . 3 . . . . . . . . . . 1 . . 1 . Swarmer 95 | . 6 1 10 3 10 9 . 9 . . 5 2 4 . . . . 14 2 1 . . 4 5 . 3 3 . . 4 . Saboteur 4 | . . . . . 3 . . . . . 1 . . . . . . . . . . . . . . . . . . . . Grunt 169 | . 7 18 11 7 7 20 4 3 . . 12 3 15 . . 5 2 6 11 4 3 . . 4 . 6 1 9 4 3 4 Brawler 11 | . . . . . 1 1 2 . . . 2 1 . . . . . . 4 . . . . . . . . . . . . Duelist 11 | . . . . 1 1 1 1 . . . 4 . 1 . . . . . 1 . . . . . . 1 . . . . . Protector 1 | . . . . . . . . . . . . . . . . 1 . . . . . . . . . . . . . . . Researcher 1 | . . . . . . . . . . . . . . . . . . . . . . . . . . . . . . 1 . Sentry 44 | . . 2 2 3 4 4 3 1 . . 2 . 7 . . 2 1 2 2 . . 5 1 . . 1 1 . 1 . . Specialist 3 | . . . . . 1 . . . . . 1 . . . . 1 . . . . . . . . . . . . . . . Hunter 24 | . . . . . 1 1 1 . . . . 1 3 . . 2 . 1 . 3 . . . . . 4 5 . . 2 . Programmer 12 | . . . . . 3 . . . . . . 1 1 . . 1 . . . . . . . . . . . . . 6 . Heavy 1 | . . . . . . . . . . . . . . . . 1 . . . . . . . . . . . . . . . Behemoth 1 | . . . . . . . . 1 . . . . . . . . . . . . . . . . . . . . . . . Cetus Guard 4 | . . . . . . . . . . . . . . 4 . . . . . . . . . . . . . . . . . Quarantine Guard 2 | . . . . . . . . . . . . . . . . . . . . . . . . . . . . 2 . . . Enhanced Grunt 1 | . . . . . . . . . . . . . . . . 1 . . . . . . . . . . . . . . . Executioner 1 | . . . . . . . . . . . . . . . . . . . . 1 . . . . . . . . . . . Alpha 7 1 | . . . . . . . . . . . . . . . . . . . . . . . . . . . . 1 . . . Samaritan 1 | . . . . . . . . . . . . . . . . . . 1 . . . . . . . . . . . . . Wasp 2 | . . . . . . . . . . . . . . . . . . . . . . . . . . . . . 2 . . Savage 4 | . . . . . . . . . . . . . . . . . . . . 1 . . 3 . . . . . . . . Guerrilla 2 | . . . . . . . . . . . . . . . . . . . . . . . . . . . . . 2 . . Mutant 5 | . . . . . . . . . 1 . . . . . . . . . 1 1 . . 2 . . . . . . . . Revision 1 | . . . . . . . . . . . . . . . . . . . . . . . . . . . 1 . . . . Best Kill Streak 15 | . 4 6 10 6 5 8 11 4 1 . 15 5 15 4 2 9 2 5 9 8 4 1 4 5 . 4 11 5 5 7 4 Combat Bots Only 15 | . 3 6 7 4 5 6 6 4 1 . 15 4 8 3 . 4 2 5 5 8 4 1 4 5 . 5 7 5 4 7 4 Max Kills in Single Turn 8 | . 1 2 3 2 3 3 3 3 1 . 3 2 8 2 1 5 2 3 2 4 1 1 2 4 . 2 2 2 2 4 2 Gunslinging 1 | . . . 1 . 1 1 . . . . . . . . . 1 . . . . . . . . . . . . . 1 . Exploded 5 | . . 1 2 . 3 3 1 3 . . 3 2 5 . . 1 2 3 2 3 1 . 2 4 . 2 1 1 1 4 . Melee . | . . . . . . . . . . . . . . . . . . . . . . . . . . . . . . . . Uniques/NPCs Destroyed . | . . . . . . . . . . . . . . . . . . . . . . . . . . . . . . . . Combat | -11 -10 -10 -9 -8 -8 -8 -7 -7 -7 -7 -6 -6 -6 -6 -6 -6 -5 -5 -5 -5 -4 -4 -4 -4 -4 -3 -3 -3 -2 -2 -1 -------- Run | Yrd Mat Min Mat Mat Gar Mat Fac Low Low Dat Pro Fac Ext Cet Arc Hub Fac Upp Upp War Pro Fac Upp Upp Zhi Pro Res Qua Res Tes Acc Hostile Shots Fired 1120 | . 50 48 68 18 61 69 29 26 7 . 50 5 192 24 3 88 6 24 14 57 4 14 10 . . 34 87 30 55 29 18 Missed 491 | . 14 17 19 6 18 21 17 10 2 . 19 3 86 15 . 42 4 8 6 33 3 2 7 . . 24 51 10 22 18 14 Damage Taken 12059 | . 400 378 467 163 604 778 140 153 69 . 877 58 2057 373 65 1310 66 351 325 390 81 328 91 12 . 213 768 409 620 419 94 Core 8021 | . 327 300 378 136 430 458 75 78 45 . 605 31 1213 275 25 956 44 242 223 262 53 175 57 9 . 134 435 267 384 331 73 Absorbed by Shields 93 | . . . . . . . . . . . . . . 93 . . . . . . . . . . . . . . . . . Redirected to Core 6801 | . 239 249 275 89 327 387 70 78 45 . 431 31 1168 181 25 668 44 203 181 262 53 175 57 9 . 113 435 244 358 331 73 Core Remaining (%) 75 | 100 . 100 100 . . 100 . . . . 96 . . . . 8 . . . . 61 . . . . 94 . 78 . 57 37 Volleys Fired 1316 | . 52 36 51 36 93 76 34 22 7 . 54 15 116 43 18 53 26 58 85 29 31 12 30 26 . 55 83 57 42 71 5 Largest 7 | . 3 3 3 4 4 7 7 7 6 . 7 6 7 5 6 6 6 1 2 1 1 4 4 1 . 1 3 3 2 3 1 Hottest 361 | . 60 144 156 201 210 335 335 336 300 . 336 325 361 240 315 315 315 80 160 94 94 294 294 94 . 36 214 300 300 300 300 Shots Fired 2584 | . 136 93 138 127 236 270 97 71 27 . 154 30 248 53 81 113 44 58 90 29 31 33 41 26 . 55 101 75 43 79 5 Gun 1834 | . 136 87 112 66 172 261 76 45 20 . 114 18 156 38 81 91 37 8 15 8 11 33 15 11 . . 83 62 27 51 . Cannon 224 | . . . 22 59 60 . 6 8 7 . 8 7 14 . . . . . . . . . . . . . . 4 1 23 5 Launcher 523 | . . 6 4 2 4 9 15 18 . . 32 5 78 15 . 22 7 50 75 21 20 . 26 15 . 55 15 9 15 5 . Special 3 | . . . . . . . . . . . . . . . . . . . . . . . . . . . 3 . . . . Kinetic 1008 | . 136 50 69 64 143 149 48 27 12 . 72 12 102 9 55 51 9 . . . . . . . . . . . . . . Thermal 929 | . . 37 65 61 89 67 28 26 15 . 50 13 68 29 26 40 28 8 15 8 11 17 11 11 . . 65 46 28 62 5 Explosive 27 | . . 6 4 2 4 . . . . . . . 3 . . . . . . 1 . . 2 . . . . . . 5 . Electromagnetic 547 | . . . . . . 54 21 18 . . 32 5 75 15 . 22 7 50 75 20 20 . 24 15 . 55 15 9 15 . . Entropic 70 | . . . . . . . . . . . . . . . . . . . . . . 16 4 . . . 18 20 . 12 . Robot Hit Streak 32 | . 9 32 11 13 21 11 11 9 11 . 17 4 12 5 13 9 13 2 6 5 . 18 8 . . . 5 6 2 10 8 Robot Miss Streak 6 | . 5 2 6 5 4 5 2 3 3 . 3 4 4 2 4 5 1 3 1 2 . 1 1 . . . 5 6 5 3 . Penetration Max 3 | . . . . . . . . . . . . . . . . . . . . . . . . . . . . 2 1 3 2 Secondary Targets 21 | . 1 2 4 . 4 3 . . . . 1 . 1 . . 2 . . . . . . . . . . 1 1 . 1 . Max Gunslinging Chain 1 | . 1 1 1 . 1 1 . . . . 1 . 1 . . 1 . . . . . . . . . . 1 1 . 1 . Shots Hit Robots 1175 | . 80 59 91 66 159 139 50 31 15 . 78 10 114 11 59 56 14 4 6 1 . 23 11 . . . 34 26 8 28 2 Core Hits 1044 | . 33 34 69 37 79 95 42 26 6 . 71 12 132 23 25 49 8 34 36 41 8 13 29 12 . 27 27 27 16 30 3 Critical Kills 17 | . . . . . 2 1 . . . . . . . . . . . . . . . . . . . . . 3 1 8 2 Critical Parts Destroyed 21 | . 1 . . . 2 . 1 1 . . 1 . . . 1 . . . . . . . . . . . 2 1 1 6 4 Critical Strikes 40 | . 1 2 . . 4 1 1 1 . . 1 . . . 1 . . . . . . . . . . . 2 4 2 14 6 Burn 2 | . . 2 . . . . . . . . . . . . . . . . . . . . . . . . . . . . . Meltdown 1 | . . . . . 1 . . . . . . . . . . . . . . . . . . . . . . . . . . Destroy 34 | . 1 . . . 3 1 1 1 . . 1 . . . 1 . . . . . . . . . . . . 4 2 13 6 Detonate 3 | . . . . . . . . . . . . . . . . . . . . . . . . . . . 2 . . 1 . Melee Attacks 11 | . . . . . . . 5 . . . . 6 . . . . . . . . . . . . . . . . . . . Impact 5 | . . . . . . . 5 . . . . . . . . . . . . . . . . . . . . . . . . Slashing 6 | . . . . . . . . . . . . 6 . . . . . . . . . . . . . . . . . . . Piercing . | . . . . . . . . . . . . . . . . . . . . . . . . . . . . . . . . Sneak Attacks 1 | . . . . . . . 1 . . . . . . . . . . . . . . . . . . . . . . . . Combat Hostiles . | . . . . . . . . . . . . . . . . . . . . . . . . . . . . . . . . Follow-up Attacks . | . . . . . . . . . . . . . . . . . . . . . . . . . . . . . . . . Damage Inflicted 60549 | . 843 1284 1971 1464 3115 4086 1780 1312 403 . 3261 639 7053 1066 1429 3217 735 1705 2455 2042 586 1178 1223 707 . 1794 2495 2744 1483 6607 1872 Guns 22323 | . 843 896 1136 765 2047 2891 909 573 317 . 1423 140 2045 213 1429 1121 374 52 94 33 . 1178 330 . . . 1307 1196 207 804 . Cannons 9225 | . . . 220 699 608 . . 86 86 . 110 . 34 . . . . . . . . . . . . . . 1158 480 3872 1872 Explosions 28945 | . . 388 615 . 460 1195 815 653 . . 1728 499 4974 853 . 2096 361 1653 2361 2009 586 . 893 707 . 1794 1188 390 796 1931 . Melee 56 | . . . . . . . 56 . . . . . . . . . . . . . . . . . . . . . . . . Ramming . | . . . . . . . . . . . . . . . . . . . . . . . . . . . . . . . . Kinetic 9985 | . 843 421 628 740 1560 1202 462 322 126 . 787 117 1171 103 706 649 148 . . . . . . . . . . . . . . Thermal 22600 | . . 475 728 724 1095 1271 502 537 277 . 934 65 1804 110 723 514 357 198 586 942 . 507 224 187 . 271 908 1397 729 4663 1872 Explosive 4527 | . . 388 615 . 460 . . . . . . . 780 . . . . . . 282 . . 434 . . . 111 . . 1457 . Electromagnetic 20448 | . . . . . . 1613 760 453 . . 1540 457 3298 853 . 2054 230 1507 1869 818 586 . 427 520 . 1523 796 390 754 . . Impact 56 | . . . . . . . 56 . . . . . . . . . . . . . . . . . . . . . . . . Slashing . | . . . . . . . . . . . . . . . . . . . . . . . . . . . . . . . . Piercing . | . . . . . . . . . . . . . . . . . . . . . . . . . . . . . . . . Entropic 2933 | . . . . . . . . . . . . . . . . . . . . . . 671 138 . . . 680 957 . 487 . Highest Corruption 13 | . . . . . 4 5 . . . . 1 . 1 1 7 6 1 1 13 13 . . 1 . . . . . . 1 . Average Corruption 2 | . . . . . 3 4 . . . . 1 . 1 1 2 4 1 1 2 13 . . 1 . . . . . . 1 . Corruption Purged 9 | . . . . . . . . . . . . . . . 8 . . . . . . . 1 . . . . . . . . Corruption Blocked . | . . . . . . . . . . . . . . . . . . . . . . . . . . . . . . . . Effects 82 | . . . . . 8 27 . . . . 4 . 12 1 2 13 1 3 8 . . . 1 . . . . . . 2 . Message Errors 22 | . . . . . 4 5 . . . . 1 . 4 . 1 3 1 . 2 . . . . . . . . . . 1 . Matter Fused 13 | . . . . . 1 3 . . . . 1 . 2 . . 3 . 1 2 . . . . . . . . . . . . Heat Flow Errors 5 | . . . . . . 3 . . . . . . . . . 1 . . . . . . . . . . . . . 1 . Energy Discharges 14 | . . . . . 1 5 . . . . 2 . 1 . . 2 . 2 1 . . . . . . . . . . . . Parts Rejected 1 | . . . . . . 1 . . . . . . . . . . . . . . . . . . . . . . . . . Parts Fused 1 | . . . . . 1 . . . . . . . . . . . . . . . . . . . . . . . . . . Data Loss (minor) 9 | . . . . . 1 3 . . . . . . 2 . . 1 . . 2 . . . . . . . . . . . . Data Loss (major) 5 | . . . . . . 4 . . . . . . 1 . . . . . . . . . . . . . . . . . . Misfires 4 | . . . . . . 2 . . . . . . . . 1 . . . 1 . . . . . . . . . . . . Alerts 5 | . . . . . . . . . . . . . 2 1 . 1 . . . . . . 1 . . . . . . . . Weapon Failures 3 | . . . . . . 1 . . . . . . . . . 2 . . . . . . . . . . . . . . . Overload Shots 9 | . . . . . . . . . . . . . . 8 . 1 . . . . . . . . . . . . . . . Overflow Damage 2068 | . . . . 16 23 8 16 18 . . . . 92 10 . 26 . 14 13 . 34 . . 14 . 43 55 105 140 1171 270 Projectiles 1492 | . . . . 16 . . . . . . . . . . . . . . . . . . . . . . . 105 140 961 270 Explosions 560 | . . . . . 23 8 . 18 . . . . 92 10 . 26 . 14 13 . 34 . . 14 . 43 55 . . 210 . Melee 16 | . . . . . . . 16 . . . . . . . . . . . . . . . . . . . . . . . . Knockbacks 1 | . . . . . . . 1 . . . . . . . . . . . . . . . . . . . . . . . . Impact 1 | . . . . . . . 1 . . . . . . . . . . . . . . . . . . . . . . . . Kinetic . | . . . . . . . . . . . . . . . . . . . . . . . . . . . . . . . . Secondary . | . . . . . . . . . . . . . . . . . . . . . . . . . . . . . . . . Self-Inflicted Damage 1527 | . . 3 6 . 64 91 51 . . . 258 . 296 4 . 106 20 77 143 31 59 . 42 12 . 61 120 26 6 51 . Shots 73 | . . 1 1 . 2 4 3 . . . 13 . 13 1 . 2 1 5 10 2 3 . 2 2 . 4 1 1 1 1 . Rammed . | . . . . . . . . . . . . . . . . . . . . . . . . . . . . . . . . Targets Rammed . | . . . . . . . . . . . . . . . . . . . . . . . . . . . . . . . . Kicked . | . . . . . . . . . . . . . . . . . . . . . . . . . . . . . . . . Crushed . | . . . . . . . . . . . . . . . . . . . . . . . . . . . . . . . . Highest Temperature 816 | . 58 486 388 264 286 428 359 438 406 . 472 221 449 291 447 816 580 30 168 132 110 526 210 44 . . 144 366 190 344 437 Average Temperature 115 | . 21 106 79 81 91 141 142 151 193 . 176 65 142 123 135 176 129 9 35 56 49 166 66 17 . . 58 101 83 59 168 Received Heat Transfer 2067 | . 162 162 135 63 108 261 24 33 60 . 138 27 315 . 9 141 9 63 39 102 12 36 9 . . . 9 96 27 27 . Effects 57 | . . 1 . 1 1 6 1 1 4 . 6 . 8 . 1 17 6 . . . . 2 . . . . . 2 . . . Shutdowns 16 | . . . . . . 2 . 1 1 . 3 . 1 . 1 3 2 . . . . 2 . . . . . . . . . Energy Bleed 8 | . . . . 1 1 . 1 . . . . . 4 . . 1 . . . . . . . . . . . . . . . Interference 17 | . . . . . . 3 . . 2 . 2 . 3 . . 5 . . . . . . . . . . . 2 . . . Matter Decay 2 | . . . . . . 1 . . 1 . . . . . . . . . . . . . . . . . . . . . . Short Circuit 2 | . . . . . . . . . . . 1 . . . . . 1 . . . . . . . . . . . . . . Damage (minor) 1 | . . 1 . . . . . . . . . . . . . . . . . . . . . . . . . . . . . Damage (major) 9 | . . . . . . . . . . . . . . . . 6 3 . . . . . . . . . . . . . . Damage (core) 2 | . . . . . . . . . . . . . . . . 2 . . . . . . . . . . . . . . . Siege Activations . | . . . . . . . . . . . . . . . . . . . . . . . . . . . . . . . . Robots Corrupted 66 | . . . . . . . 2 . . . 3 1 5 5 . 7 . 7 10 . 2 . 1 4 . 10 3 2 4 . . Combat Hostiles 61 | . . . . . . . 1 . . . 3 1 5 4 . 4 . 7 10 . 2 . 1 4 . 10 3 2 4 . . Parts Fried 107 | . . . . . . 5 1 1 . . 9 . 7 6 . 16 . 6 10 . 4 . . 8 . 21 5 2 6 . . Impact Corruptions 1 | . . . . . . . 1 . . . . . . . . . . . . . . . . . . . . . . . . Robots Melted 4 | . . . . . 1 . . . . . . . . . . . . . . . . . . . . . 1 2 . . . Combat Hostiles 2 | . . . . . 1 . . . . . . . . . . . . . . . . . . . . . 1 . . . . Parts Melted 26 | . . . 1 2 2 3 2 . . . 4 . 2 . 1 1 2 . . 1 . . 1 . . . 3 1 . . . Heat Transferred 21534 | . . 1295 1163 1256 2048 2377 1100 686 511 . 1873 100 2576 187 930 634 323 200 524 637 . 481 272 100 . 150 797 259 272 783 . Parts Sabotaged . | . . . . . . . . . . . . . . . . . . . . . . . . . . . . . . . . Parts Stolen . | . . . . . . . . . . . . . . . . . . . . . . . . . . . . . . . . Parts Stripped . | . . . . . . . . . . . . . . . . . . . . . . . . . . . . . . . . Power Chain Reactions 62 | . . . . . . 8 4 3 . . 5 1 10 . . 1 1 4 5 8 1 . 2 2 . 5 1 . 1 . . Alert | -11 -10 -10 -9 -8 -8 -8 -7 -7 -7 -7 -6 -6 -6 -6 -6 -6 -5 -5 -5 -5 -4 -4 -4 -4 -4 -3 -3 -3 -2 -2 -1 ------- Run | Yrd Mat Min Mat Mat Gar Mat Fac Low Low Dat Pro Fac Ext Cet Arc Hub Fac Upp Upp War Pro Fac Upp Upp Zhi Pro Res Qua Res Tes Acc Peak Influence 1570 | . 307 392 850 586 1564 1521 668 . . . . 508 1570 1219 760 879 460 . . . . 409 . . . . 697 266 565 524 470 Initial 862 | . . 119 119 358 169 762 487 . . . . 280 248 862 487 266 430 . . . . 276 . . . . 212 68 144 207 314 Average 504 | . 163 93 524 312 1013 1020 417 . . . . 422 879 1100 720 434 109 . . . . 317 . . . . 218 139 450 214 347 Maximum Alert Level 4 | . 1 1 3 2 4 4 2 . . . . 2 4 4 3 3 2 . . . . 2 . . . . 2 1 2 2 2 Low Security (%) 26 | 100 65 89 11 26 . . 7 . . . . . . . . . 89 . . . . . . . . . 47 76 7 50 . Level 1 23 | . 34 10 20 51 11 . 39 . . . . 11 6 . . 50 . . . . . 94 . . . . 33 23 22 34 91 Level 2 24 | . . . 38 21 13 . 53 . . . . 88 36 . 24 44 10 . . . . 5 . . . . 19 . 70 15 8 Level 3 15 | . . . 29 . 29 72 . . . . . . 28 43 75 5 . . . . . . . . . . . . . . . Level 4 10 | . . . . . 44 27 . . . . . . 28 56 . . . . . . . . . . . . . . . . . Level 5 . | . . . . . . . . . . . . . . . . . . . . . . . . . . . . . . . . High Security . | . . . . . . . . . . . . . . . . . . . . . . . . . . . . . . . . Max Security . | . . . . . . . . . . . . . . . . . . . . . . . . . . . . . . . . Squads Dispatched 59 | . 3 . 6 3 . 7 4 . . . 1 . 6 . . 6 4 . 1 . . . . . . . 8 3 4 3 . Investigation 18 | . 2 . 3 . . 1 1 . . . . . . . . 1 2 . . . . . . . . . 5 1 1 1 . Extermination 4 | . . . . . . . 1 . . . . . . . . 1 1 . . . . . . . . . . . . 1 . Reinforcement 28 | . 1 . 2 2 . 4 1 . . . . . 4 . . 4 1 . . . . . . . . . 3 2 3 1 . Assault 7 | . . . 1 . . 2 . . . . 1 . 2 . . . . . 1 . . . . . . . . . . . . Garrison 2 | . . . . 1 . . 1 . . . . . . . . . . . . . . . . . . . . . . . . Intercept . | . . . . . . . . . . . . . . . . . . . . . . . . . . . . . . . . Searches Triggered . | . . . . . . . . . . . . . . . . . . . . . . . . . . . . . . . . Construction Impeded 7 | . . . . . . 1 1 . . . . . 4 . . . . . . . . . . . . . . 1 . . . Haulers Reinforced 4 | . . . . . . . . . . . . . . . . . 1 . . . . . . . . . . . 3 . . Active Scanning Responses . | . . . . . . . . . . . . . . . . . . . . . . . . . . . . . . . . Cargo Convoy Interrupts . | . . . . . . . . . . . . . . . . . . . . . . . . . . . . . . . . Stealth | -11 -10 -10 -9 -8 -8 -8 -7 -7 -7 -7 -6 -6 -6 -6 -6 -6 -5 -5 -5 -5 -4 -4 -4 -4 -4 -3 -3 -3 -2 -2 -1 --------- Run | Yrd Mat Min Mat Mat Gar Mat Fac Low Low Dat Pro Fac Ext Cet Arc Hub Fac Upp Upp War Pro Fac Upp Upp Zhi Pro Res Qua Res Tes Acc Distress Signals 38 | . 2 1 1 1 . 4 1 . . . . 1 4 1 . 4 . . . . . . . . . . 8 1 5 4 . Communications Jammed . | . . . . . . . . . . . . . . . . . . . . . . . . . . . . . . . . Distress Signals . | . . . . . . . . . . . . . . . . . . . . . . . . . . . . . . . . Times Spotted 581 | . 19 22 37 22 33 57 11 9 2 . 34 19 59 8 21 27 4 27 19 30 7 5 9 4 . 17 22 16 14 24 3 Peak Tracking Total 13 | . 3 5 6 3 5 6 3 4 1 . 9 5 11 5 1 11 2 7 6 13 3 1 4 4 . 4 7 5 6 6 3 Tactical Retreats 63 | . . 1 2 . 2 3 1 1 . . 6 . 5 . . 3 . 7 11 1 4 . 2 2 . 3 2 4 3 . . Traps | -11 -10 -10 -9 -8 -8 -8 -7 -7 -7 -7 -6 -6 -6 -6 -6 -6 -5 -5 -5 -5 -4 -4 -4 -4 -4 -3 -3 -3 -2 -2 -1 ------- Run | Yrd Mat Min Mat Mat Gar Mat Fac Low Low Dat Pro Fac Ext Cet Arc Hub Fac Upp Upp War Pro Fac Upp Upp Zhi Pro Res Qua Res Tes Acc Traps Triggered 22 | . . . 1 . 5 1 1 . . . . . 4 . . 2 . 2 . 2 . . . . . . . 1 . 3 . Indirectly 7 | . . . . . . . . . . . . . 2 . . 1 . 2 . 2 . . . . . . . . . . . Trap Hack Attempts . | . . . . . . . . . . . . . . . . . . . . . . . . . . . . . . . . Triggered . | . . . . . . . . . . . . . . . . . . . . . . . . . . . . . . . . Disarmed 3 | . . . . 3 . . . . . . . . . . . . . . . . . . . . . . . . . . . Reprogrammed . | . . . . . . . . . . . . . . . . . . . . . . . . . . . . . . . . Reused . | . . . . . . . . . . . . . . . . . . . . . . . . . . . . . . . . Traps Extracted . | . . . . . . . . . . . . . . . . . . . . . . . . . . . . . . . . Installed . | . . . . . . . . . . . . . . . . . . . . . . . . . . . . . . . . Triggered 8 | . . . . . . . . 1 . . . . . . . . . . . 7 . . . . . . . . . . . Objects Rigged 1 | . . . . . . . . . . . . . . . . 1 . . . . . . . . . . . . . . . Exploded 1 | . . . . . . . . . . . . . . . . 1 . . . . . . . . . . . . . . . Machines | -11 -10 -10 -9 -8 -8 -8 -7 -7 -7 -7 -6 -6 -6 -6 -6 -6 -5 -5 -5 -5 -4 -4 -4 -4 -4 -3 -3 -3 -2 -2 -1 ---------- Run | Yrd Mat Min Mat Mat Gar Mat Fac Low Low Dat Pro Fac Ext Cet Arc Hub Fac Upp Upp War Pro Fac Upp Upp Zhi Pro Res Qua Res Tes Acc Machines Disabled 85 | . . . 1 1 9 3 2 . 1 . . 5 10 . 3 14 1 2 2 2 . 1 1 . . . 3 8 4 11 1 Max in Single Turn 3 | . . . 1 1 2 1 2 . 1 . . 2 2 . 1 3 1 2 1 1 . 1 1 . . . 2 1 1 1 1 Garrison Access 15 | . . . . . . . 2 . . . . 2 . . . 2 . . . . . 1 . . . . 3 . 2 1 2 Garrison Relay 4 | . . . . . 4 . . . . . . . . . . . . . . . . . . . . . . . . . . Phase Generator 1 | . . . . . 1 . . . . . . . . . . . . . . . . . . . . . . . . . . Network Hub 2 | . . . . . . . . . . . . . . . . 2 . . . . . . . . . . . . . . . Machines Repaired . | . . . . . . . . . . . . . . . . . . . . . . . . . . . . . . . . Machines Dismantled . | . . . . . . . . . . . . . . . . . . . . . . . . . . . . . . . . Machines Sabotaged . | . . . . . . . . . . . . . . . . . . . . . . . . . . . . . . . . Overloaded Fab Kills . | . . . . . . . . . . . . . . . . . . . . . . . . . . . . . . . . Hacking | -11 -10 -10 -9 -8 -8 -8 -7 -7 -7 -7 -6 -6 -6 -6 -6 -6 -5 -5 -5 -5 -4 -4 -4 -4 -4 -3 -3 -3 -2 -2 -1 --------- Run | Yrd Mat Min Mat Mat Gar Mat Fac Low Low Dat Pro Fac Ext Cet Arc Hub Fac Upp Upp War Pro Fac Upp Upp Zhi Pro Res Qua Res Tes Acc Machines Accessed 116 | . 7 . 4 7 3 3 7 . . 4 . 5 3 2 . 9 6 . 1 8 . 4 . . 6 . 11 6 7 8 5 Terminals 68 | . 5 . 3 6 3 2 4 . . . . 2 3 2 . 7 3 . . . . 2 . . . . 5 6 5 7 3 Fabricators 6 | . . . . . . . 1 . . . . . . . . . 3 . . . . . . . . . 1 . 1 . . Repair Stations 1 | . . . . . . . . . . . . . . . . . . . . . . . . . . . 1 . . . . Recycling Units 5 | . 2 . 1 . . 1 . . . . . . . . . . . . . . . 1 . . . . . . . . . Scanalyzers 2 | . . . . . . . . . . . . 1 . . . . . . . . . . . . . . 1 . . . . Garrison Access 15 | . . . . 1 . . 2 . . . . 2 . . . 2 . . . . . 1 . . . . 3 . 1 1 2 Total Hacks 419 | . 22 . 16 22 5 18 25 . . 32 . 15 8 5 . 19 49 . 1 13 . 11 . . 19 . 42 25 38 24 10 Successful 275 | . 11 . 6 14 3 10 15 . . 32 . 10 1 1 . 14 31 . 1 13 . 9 . . 19 . 27 18 18 16 6 Failed 141 | . 10 . 9 8 2 8 10 . . . . 5 7 4 . 5 17 . . . . 2 . . . . 15 7 20 8 4 Catastrophic 18 | . 1 . 3 2 . 2 1 . . . . . 2 . . . . . . . . . . . . . 1 . 4 1 1 Database Lockouts 3 | . 1 . 1 . . . . . . . . . . . . . 1 . . . . . . . . . . . . . . Manual 227 | . 21 . 13 16 . 19 16 . . . . 6 7 1 . 14 36 . . 1 . 6 . . . . 19 14 22 9 7 Terminals 302 | . 20 . 15 21 5 17 19 . . . . 10 8 5 . 17 40 . . . . 8 . . . . 29 25 32 23 8 Fabricators 20 | . . . . . . . 2 . . . . . . . . . 9 . . . . . . . . . 4 . 5 . . Repair Stations 1 | . . . . . . . . . . . . . . . . . . . . . . . . . . . 1 . . . . Recycling Units 6 | . 2 . 1 . . 1 . . . . . . . . . . . . . . . 2 . . . . . . . . . Scanalyzers 4 | . . . . . . . . . . . . 2 . . . . . . . . . . . . . . 2 . . . . Garrison Access 21 | . . . . 1 . . 4 . . . . 3 . . . 2 . . . . . 1 . . . . 6 . 1 1 2 Terminal Hacks 205 | . 7 . 4 10 3 7 10 . . 32 . 5 1 1 . 7 20 . 1 13 . 5 . . 19 . 16 14 14 13 3 Record 31 | . . . . . . . . . . 11 . . . . . . . . 1 12 . . . . 7 . . . . . . Part Schematic 23 | . . . . . . . . . . 13 . . . . . . . . . . . . . . 4 . 2 . 2 2 . Robot Schematic 5 | . . . . . . . . . . 5 . . . . . . . . . . . . . . . . . . . . . Robot Analysis 15 | . 1 . 1 2 . 1 1 . . . . 1 . . . . 4 . . . . . . . 4 . . . . . . Prototype ID Bank 14 | . 1 . 1 . . 1 . . . 3 . . . . . . 1 . . . . . . . 4 . . 1 2 . . Open Door 6 | . . . . . . . . . . . . 1 . 1 . . . . . 1 . . . . . . . 1 . 1 1 Level Access Points 3 | . . . . . . . . . . . . . . . . . . . . . . . . . . . . 1 . 1 1 Branch Access Points 6 | . . . . . . . 1 . . . . 1 . . . . 1 . . . . 1 . . . . . . 1 1 . Emergency Access Points 1 | . . . . . 1 . . . . . . . . . . . . . . . . . . . . . . . . . . Machine Index 1 | . . . . . . . . . . . . . . . . . . . . . . . . . . . . 1 . . . Terminal Index 10 | . 1 . 1 1 . . 1 . . . . 1 . . . 1 1 . . . . . . . . . . . 1 1 1 Fabricator Index 2 | . . . . . . . . . . . . . . . . . . . . . . . . . . . 1 . 1 . . Repair Station Index 1 | . . . . . . . . . . . . . . . . . . . . . . . . . . . . . . 1 . Garrison Index 3 | . . . . . . . . . . . . . . . . . 1 . . . . . . . . . . . 1 1 . Alert Level 15 | . . . 1 2 . 1 2 . . . . . 1 . . 1 1 . . . . 1 . . . . 2 2 . 1 . Unreport Threat 25 | . . . . 2 . 4 2 . . . . . . . . 4 4 . . . . 1 . . . . 5 2 . 1 . Locate Traps 11 | . 2 . . 1 . . 1 . . . . . . . . 1 1 . . . . 1 . . . . 1 2 1 . . Disarm Traps 1 | . . . . 1 . . . . . . . . . . . . . . . . . . . . . . . . . . . Maintenance Status 2 | . . . . . . . . . . . . . . . . . . . . . . . . . . . . 1 1 . . Security Status 1 | . . . . . . . . . . . . 1 . . . . . . . . . . . . . . . . . . . Patrol Status 1 | . . . . . . . . . . . . . . . . . . . . . . . . . . . . . 1 . . Investigation Status 1 | . . . . . . . . . . . . . . . . . . . . . . . . . . . 1 . . . . Recall Investigation 6 | . 1 . . . . . . . . . . . . . . . 2 . . . . . . . . . 1 . 1 1 . Recall Extermination 2 | . . . . . . . 1 . . . . . . . . . 1 . . . . . . . . . . . . . . Recall Reinforcements 4 | . 1 . . . . . . . . . . . . . . . 1 . . . . . . . . . . 1 1 . . Hauler Manifests 5 | . . . . . . . 1 . . . . . . . . . 1 . . . . 1 . . . . . . 1 1 . Zone Layout 7 | . . . . 1 . . . . . . . . . . . . 1 . . . . . . . . . 3 2 . . . Garrison Registry 1 | . . . . . 1 . . . . . . . . . . . . . . . . . . . . . . . . . . Security Stations 1 | . . . . . 1 . . . . . . . . . . . . . . . . . . . . . . . . . . Protovariant Controls 1 | . . . . . . . . . . . . . . . . . . . . . . . . . . . . . . 1 . Fabricator Hacks 10 | . . . . . . . 1 . . . . . . . . . 4 . . . . . . . . . 3 . 2 . . Network Status 3 | . . . . . . . 1 . . . . . . . . . 1 . . . . . . . . . 1 . . . . Load Schematic 4 | . . . . . . . . . . . . . . . . . 2 . . . . . . . . . 1 . 1 . . Build 3 | . . . . . . . . . . . . . . . . . 1 . . . . . . . . . 1 . 1 . . Repair Station Hacks 1 | . . . . . . . . . . . . . . . . . . . . . . . . . . . 1 . . . . Refit 1 | . . . . . . . . . . . . . . . . . . . . . . . . . . . 1 . . . . Recycling Unit Hacks 1 | . . . . . . . . . . . . . . . . . . . . . . 1 . . . . . . . . . Retrieve Components 1 | . . . . . . . . . . . . . . . . . . . . . . 1 . . . . . . . . . Scanalyzer 3 | . . . . . . . . . . . . 1 . . . . . . . . . . . . . . 2 . . . . Insert Component 3 | . . . . . . . . . . . . 1 . . . . . . . . . . . . . . 2 . . . . Garrison Access Hacks 15 | . . . . 1 . . 2 . . . . 2 . . . 2 . . . . . 1 . . . . 3 . 1 1 2 Unlock Access 1 | . . . . 1 . . . . . . . . . . . . . . . . . . . . . . . . . . . Seal Access 14 | . . . . . . . 2 . . . . 2 . . . 2 . . . . . 1 . . . . 3 . 1 1 2 Unauthorized Hacks 40 | . 4 . 2 3 . 3 2 . . . . 2 . . . 5 7 . . . . 2 . . . . 2 4 1 2 1 Terminals 31 | . 2 . 1 3 . 2 2 . . . . 2 . . . 5 4 . . . . 2 . . . . 1 4 . 2 1 Track 5 | . . . . 1 . . . . . . . . . . . . 1 . . . . . . . . . . 2 . . 1 Assimilate 2 | . . . . 1 . . . . . . . . . . . . . . . . . . . . . . . . . 1 . Botnet 15 | . 1 . 1 1 . 1 2 . . . . 1 . . . 2 1 . . . . 2 . . . . 1 1 . 1 . Detonate 2 | . . . . . . . . . . . . . . . . 2 . . . . . . . . . . . . . . . Disrupt 1 | . . . . . . . . . . . . . . . . . 1 . . . . . . . . . . . . . . Operators 5 | . 1 . . . . 1 . . . . . 1 . . . . 1 . . . . . . . . . . 1 . . . Sabotage 1 | . . . . . . . . . . . . . . . . 1 . . . . . . . . . . . . . . . Fabricators 5 | . . . . . . . . . . . . . . . . . 3 . . . . . . . . . 1 . 1 . . Report 1 | . . . . . . . . . . . . . . . . . 1 . . . . . . . . . . . . . . Prioritize 2 | . . . . . . . . . . . . . . . . . . . . . . . . . . . 1 . 1 . . Haulers 1 | . . . . . . . . . . . . . . . . . 1 . . . . . . . . . . . . . . Recompile 1 | . . . . . . . . . . . . . . . . . 1 . . . . . . . . . . . . . . Repair Stations . | . . . . . . . . . . . . . . . . . . . . . . . . . . . . . . . . Recycling Units 4 | . 2 . 1 . . 1 . . . . . . . . . . . . . . . . . . . . . . . . . Tunnel 4 | . 2 . 1 . . 1 . . . . . . . . . . . . . . . . . . . . . . . . . Scanalyzers . | . . . . . . . . . . . . . . . . . . . . . . . . . . . . . . . . Garrison Access . | . . . . . . . . . . . . . . . . . . . . . . . . . . . . . . . . Data Cores Recovered 2 | . . . 1 1 . . . . . . . . . . . . . . . . . . . . . . . . . . . Used . | . . . . . . . . . . . . . . . . . . . . . . . . . . . . . . . . Hacking Detections 51 | . 5 . 2 5 2 2 5 . . . . 1 3 . . 3 4 . . . . 1 . . . . 5 4 5 2 2 Full Trace Events 5 | . . . 1 . . . . . . . . . . . . . 1 . . . . . . . . . 1 . 1 1 . Feedback Events . | . . . . . . . . . . . . . . . . . . . . . . . . . . . . . . . . Feedback Blocked . | . . . . . . . . . . . . . . . . . . . . . . . . . . . . . . . . Robot Schematics Acquired 7 | . . . . . . . . . . 5 . . . . . . . . . . . . . . . . . 1 . 1 . Robots Built . | . . . . . . . . . . . . . . . . . . . . . . . . . . . . . . . . Authchips . | . . . . . . . . . . . . . . . . . . . . . . . . . . . . . . . . Time . | . . . . . . . . . . . . . . . . . . . . . . . . . . . . . . . . Total Robot Build Rating . | . . . . . . . . . . . . . . . . . . . . . . . . . . . . . . . . Part Schematics Acquired 29 | . . . . . . . . . . 13 . . . . . . . . . . . . . . 4 . 2 5 2 3 . Parts Built 4 | . . . . . . . . . . . . . . . . . 2 . . . . . . . . . 1 . 1 . . Authchips . | . . . . . . . . . . . . . . . . . . . . . . . . . . . . . . . . Time 192 | . . . . . . . . . . . . . . . . . 106 . . . . . . . . . 31 . 55 . . Total Part Build Rating 28 | . . . . . . . . . . . . . . . . . 12 . . . . . . . . . 7 . 9 . . Parts Repaired . | . . . . . . . . . . . . . . . . . . . . . . . . . . . . . . . . Time . | . . . . . . . . . . . . . . . . . . . . . . . . . . . . . . . . Parts Recycled . | . . . . . . . . . . . . . . . . . . . . . . . . . . . . . . . . Recycled Matter . | . . . . . . . . . . . . . . . . . . . . . . . . . . . . . . . . Retrieved Matter . | . . . . . . . . . . . . . . . . . . . . . . . . . . . . . . . . Retrieved Components . | . . . . . . . . . . . . . . . . . . . . . . . . . . . . . . . . Parts Scanalyzed . | . . . . . . . . . . . . . . . . . . . . . . . . . . . . . . . . Part Schematics Acquired . | . . . . . . . . . . . . . . . . . . . . . . . . . . . . . . . . Parts Damaged . | . . . . . . . . . . . . . . . . . . . . . . . . . . . . . . . . Bothacking | -11 -10 -10 -9 -8 -8 -8 -7 -7 -7 -7 -6 -6 -6 -6 -6 -6 -5 -5 -5 -5 -4 -4 -4 -4 -4 -3 -3 -3 -2 -2 -1 ------------ Run | Yrd Mat Min Mat Mat Gar Mat Fac Low Low Dat Pro Fac Ext Cet Arc Hub Fac Upp Upp War Pro Fac Upp Upp Zhi Pro Res Qua Res Tes Acc Used RIF Installer . | . . . . . . . . . . . . . . . . . . . . . . . . . . . . . . . . Robots Hacked 1 | . . . . . . . . . . . . . . . . . . . . . . . . . . . 1 . . . . Non-combat 1 | . . . . . . . . . . . . . . . . . . . . . . . . . . . 1 . . . . Combat . | . . . . . . . . . . . . . . . . . . . . . . . . . . . . . . . . Robot Hacks Applied 1 | . . . . . . . . . . . . . . . . . . . . . . . . . . . 1 . . . . find_fabricator 1 | . . . . . . . . . . . . . . . . . . . . . . . . . . . 1 . . . . Relay Couplers Released 8 | . . . . . 8 . . . . . . . . . . . . . . . . . . . . . . . . . . Machine Destruction 8 | . . . . . 8 . . . . . . . . . . . . . . . . . . . . . . . . . . Fabnet Peak Effective % . | . . . . . . . . . . . . . . . . . . . . . . . . . . . . . . . . Robots Rewired 19 | . . . . . 7 . . . 4 . . . 8 . . . . . . . . . . . . . . . . . . Allies Hacked . | . . . . . . . . . . . . . . . . . . . . . . . . . . . . . . . . Hacks Repelled . | . . . . . . . . . . . . . . . . . . . . . . . . . . . . . . . . Allies | -11 -10 -10 -9 -8 -8 -8 -7 -7 -7 -7 -6 -6 -6 -6 -6 -6 -5 -5 -5 -5 -4 -4 -4 -4 -4 -3 -3 -3 -2 -2 -1 -------- Run | Yrd Mat Min Mat Mat Gar Mat Fac Low Low Dat Pro Fac Ext Cet Arc Hub Fac Upp Upp War Pro Fac Upp Upp Zhi Pro Res Qua Res Tes Acc Total Allies 37 | . . 3 . 1 7 . . . 4 . . . 16 5 . . . . . . . . . . . . . . . 1 . Largest Group 14 | . . 3 . 1 4 2 . . 4 4 4 4 11 14 14 12 . . . . . . . . . . . . . 1 . Highest-Rated Group 886 | . . 40 . 26 72 30 . . 124 124 124 121 481 886 886 693 . . . . . . . . . . . . . 45 . Highest-Rated Ally 159 | . . 16 . 26 24 15 . . 31 31 31 31 159 159 159 96 . . . . . . . . . . . . . 45 . Warlord Squad Rendezvous 3 | . . . . . . . . . . . . 2 . . . 1 . . . . . . . . . . . . . . . Ranger 1 | . . . . . . . . . . . . . . . . 1 . . . . . . . . . . . . . . . Ghost 2 | . . . . . . . . . . . . 2 . . . . . . . . . . . . . . . . . . . Total Orders 51 | . . . . 3 12 . . . 1 1 9 2 7 1 4 10 . . . . . . . . . . . . . 1 . STAY 31 | . . . . 3 7 . . . 1 1 5 1 3 1 2 6 . . . . . . . . . . . . . 1 . FOLLOW 18 | . . . . . 5 . . . . . 4 1 3 . 2 3 . . . . . . . . . . . . . . . GUARD 2 | . . . . . . . . . . . . . 1 . . 1 . . . . . . . . . . . . . . . Ally Attacks 377 | . . 19 . . 28 11 . . 2 . 53 28 111 21 16 88 . . . . . . . . . . . . . . . Total Damage 6543 | . . 207 . . 535 198 . . 52 . 729 448 1637 490 261 1986 . . . . . . . . . . . . . . . Kills 51 | . . 1 . . 6 2 . . 1 . 3 4 16 4 4 10 . . . . . . . . . . . . . . . Allies Corrupted 1 | . . . . . . . . . . . . . . . . 1 . . . . . . . . . . . . . . . Allies Melted 2 | . . . . . 1 . . . . . . . . . . . . . . 1 . . . . . . . . . . . Intel | -11 -10 -10 -9 -8 -8 -8 -7 -7 -7 -7 -6 -6 -6 -6 -6 -6 -5 -5 -5 -5 -4 -4 -4 -4 -4 -3 -3 -3 -2 -2 -1 ------- Run | Yrd Mat Min Mat Mat Gar Mat Fac Low Low Dat Pro Fac Ext Cet Arc Hub Fac Upp Upp War Pro Fac Upp Upp Zhi Pro Res Qua Res Tes Acc Robot Analysis Total 15 | . 1 . 1 2 . 1 1 . . . . 1 . . . . 4 . . . . . . . 4 . . . . . . Derelict Logs Recovered 10 | . . 1 . . . . . . 3 . . . . . . . . . 2 . 1 . 1 2 . . . . . . . Drone Launches . | . . . . . . . . . . . . . . . . . . . . . . . . . . . . . . . . Drone Recoveries . | . . . . . . . . . . . . . . . . . . . . . . . . . . . . . . . . Exploration | -11 -10 -10 -9 -8 -8 -8 -7 -7 -7 -7 -6 -6 -6 -6 -6 -6 -5 -5 -5 -5 -4 -4 -4 -4 -4 -3 -3 -3 -2 -2 -1 ------------- Run | Yrd Mat Min Mat Mat Gar Mat Fac Low Low Dat Pro Fac Ext Cet Arc Hub Fac Upp Upp War Pro Fac Upp Upp Zhi Pro Res Qua Res Tes Acc Turns Passed 21748 | 2 673 1602 696 919 1604 1172 1573 975 636 90 1263 687 1388 376 274 676 382 722 693 622 269 288 524 306 106 496 752 628 428 830 96 Spaces Moved 20855 | 2 476 713 414 679 996 748 1222 758 510 76 879 641 1494 283 266 716 499 936 788 682 371 363 804 471 222 957 1195 822 629 1034 209 Core 73 | 1 72 . . . . . . . . . . . . . . . . . . . . . . . . . . . . . . Treads 62 | . . . . 62 . . . . . . . . . . . . . . . . . . . . . . . . . . . Legs 625 | 1 . . . . 624 . . . . . . . . . . . . . . . . . . . . . . . . . . Wheels 6963 | . 404 713 414 617 372 748 1222 758 510 76 879 250 . . . . . . . . . . . . . . . . . . . Hover 13132 | . . . . . . . . . . . . 391 1494 283 266 716 499 936 788 682 371 363 804 471 222 957 1195 822 629 1034 209 Flight . | . . . . . . . . . . . . . . . . . . . . . . . . . . . . . . . . Fastest Speed 37 | 120 50 100 100 100 105 96 115 115 115 115 115 56 56 56 56 56 53 57 57 53 49 44 44 39 39 39 39 39 37 37 38 Average Speed 72 | 135 92 100 108 105 121 111 115 115 115 115 115 87 56 56 56 56 54 57 57 74 49 46 44 40 39 39 39 39 44 38 39 Slowest Speed 186 | 150 100 100 115 145 186 125 115 115 115 115 115 157 56 56 56 56 57 57 57 128 53 49 44 44 44 39 39 39 99 96 41 Overloaded Moves . | . . . . . . . . . . . . . . . . . . . . . . . . . . . . . . . . Propulsion Burnouts . | . . . . . . . . . . . . . . . . . . . . . . . . . . . . . . . . Robots Hopped . | . . . . . . . . . . . . . . . . . . . . . . . . . . . . . . . . Cave-ins Triggered 2 | . . . . . . . . . . . . . . 1 . 1 . . . . . . . . . . . . . . . Exploration Rate (%) 60 | 2 76 98 50 47 76 42 35 86 68 68 81 18 97 80 85 77 12 89 64 84 61 14 89 61 64 89 34 91 19 81 10 Regions Visited 31 Branch Regions 19 Pre-discovered Areas 11 | . 2 1 1 . . 1 . 1 1 1 . . . . . . . . . . . . . . 3 . . . . . . Known Exits Taken 29 | . 1 1 1 1 . 1 1 1 1 1 1 1 1 1 1 1 1 1 1 1 1 1 1 1 1 1 1 1 1 1 . Unknown Exits Taken 1 | 1 . . . . . . . . . . . . . . . . . . . . . . . . . . . . . . . Scrap Searched 29 | . . 1 . . . . . 8 2 . 1 . . . . . . 4 2 . 2 . 3 3 . 3 . . . . . Spaces Dug 356 | . . . 15 10 31 12 8 . 1 . 19 10 12 21 . 9 15 8 7 2 29 3 20 22 . 9 39 20 6 26 2 Terrain Destroyed 1380 | . . 58 34 22 166 26 11 5 2 . 33 11 111 21 2 351 21 25 32 46 29 15 43 22 . 31 88 41 29 97 8 Melee 9 | . . . . . . . 3 . . . . 6 . . . . . . . . . . . . . . . . . . . Projectile 286 | . . . . . . . 1 . 2 . 2 5 11 21 2 12 17 2 7 2 11 15 3 11 . . 45 41 19 49 8 AOE 1085 | . . 58 34 22 166 26 7 5 . . 31 . 100 . . 339 4 23 25 44 18 . 40 11 . 31 43 . 10 48 . Terrain Rammed . | . . . . . . . . . . . . . . . . . . . . . . . . . . . . . . . . Walls Destroyed . | . . . . . . . . . . . . . . . . . . . . . . . . . . . . . . . . Machines Disabled . | . . . . . . . . . . . . . . . . . . . . . . . . . . . . . . . . Actions | -11 -10 -10 -9 -8 -8 -8 -7 -7 -7 -7 -6 -6 -6 -6 -6 -6 -5 -5 -5 -5 -4 -4 -4 -4 -4 -3 -3 -3 -2 -2 -1 --------- Run | Yrd Mat Min Mat Mat Gar Mat Fac Low Low Dat Pro Fac Ext Cet Arc Hub Fac Upp Upp War Pro Fac Upp Upp Zhi Pro Res Qua Res Tes Acc Total 25713 | 2 613 1531 551 819 1255 957 1340 828 547 78 1054 741 1895 457 362 925 576 1058 938 765 423 456 931 556 241 1024 1389 1061 732 1391 217 Wait 2305 | . 41 746 44 59 54 61 38 30 9 3 62 40 172 96 51 120 38 29 11 14 17 66 72 16 3 4 61 130 22 196 . Move 20820 | 1 475 712 413 678 994 747 1221 757 509 75 878 640 1493 281 265 714 498 935 787 681 370 362 803 470 221 956 1194 821 628 1033 208 Hop . | . . . . . . . . . . . . . . . . . . . . . . . . . . . . . . . . Pick Up 47 | . 5 2 1 . 3 2 3 . 1 . 1 . 4 2 4 1 . 1 1 3 . . . . 1 . 1 7 1 3 . Fast Attach 209 | . 8 4 7 16 16 13 16 3 . . 10 11 2 2 8 . 3 1 1 13 1 1 4 7 7 1 3 10 6 34 1 Attach 11 | . . 1 . . . 1 . . . . . 1 . . . . . 1 1 . . . . . 1 . . 4 1 . . Detach 12 | . . . . . . . 2 . . . . 1 . . 3 . . . . 1 . . 2 . . . 1 . . 2 . Swap 125 | . 1 4 4 5 6 5 2 . . . 2 5 7 . 2 8 5 13 8 4 4 5 5 7 1 . 6 5 4 6 1 Drop 230 | 1 6 6 7 14 18 7 17 2 . . 7 13 6 5 5 3 6 1 1 15 . 3 2 7 7 1 8 17 8 35 2 Fire 1316 | . 52 36 51 36 93 76 34 22 7 . 54 15 116 43 18 53 26 58 85 29 31 12 30 26 . 55 83 57 42 71 5 Melee 11 | . . . . . . . 5 . . . . 6 . . . . . . . . . . . . . . . . . . . Ram . | . . . . . . . . . . . . . . . . . . . . . . . . . . . . . . . . Kick . | . . . . . . . . . . . . . . . . . . . . . . . . . . . . . . . . Crush . | . . . . . . . . . . . . . . . . . . . . . . . . . . . . . . . . Escape Stasis 25 | . . . . . 23 . . . . . . . . 1 . 1 . . . . . . . . . . . . . . . Rewire 58 | . . . . . 19 . . . 16 . . . 23 . . . . . . . . . . . . . . . . . . Trap . | . . . . . . . . . . . . . . . . . . . . . . . . . . . . . . . . Miscellaneous 544 | . 25 20 24 11 29 45 2 14 5 . 40 9 72 27 6 25 . 19 43 5 . 7 13 23 . 7 32 10 20 11 . Route ------- -11/Scrapyard -10/Materials (discovered 4 exits: *Mat x2 / *Min x2) -10/Mines (discovered 3 exits: *Mat x2 / *Exi) -9/Materials (discovered 2 exits: *Mat x2) -8/Materials (discovered 2 exits: *Fac / Gar) -8/Garrison (discovered 3 exits: *Mat x3) -8/Materials -7/Factory (discovered 5 exits: *Fac / *Sto x2 / *Low x2) -7/Lower Caves -7/Lower Caves (discovered 2 exits: *Fac / *Dat) -7/Data Miner -6/Proximity Caves -6/Factory (discovered 5 exits: Fac / Low x2 / *Ext x2) -6/Extension (discovered 3 exits: *Fac x2 / *Cet) -6/Cetus (discovered 2 exits: *Fac / *Arc) -6/Archives (discovered 3 exits: *Fac / *Hub x2) -6/Hub_04(d) (discovered 4 exits: *Fac x4) -5/Factory (discovered 3 exits: *Fac / *Upp x2) -5/Upper Caves -5/Upper Caves (discovered 2 exits: Fac / *War) -5/Warlord -4/Proximity Caves -4/Factory (discovered 2 exits: *Upp x2) -4/Upper Caves -4/Upper Caves (discovered 2 exits: *Res / *Zhi) -4/Zhirov -3/Proximity Caves -3/Research -3/Quarantine -2/Research (discovered 3 exits: *Acc / *Tes x2) -2/Testing -1/Access To Epsilon Eridani History --------- Turn | Location | Event 1 | -11/Scrapyard | Discovered new exit (range 1) 3 | -11/Scrapyard | Entered Materials 34 | -10/Materials | Upgraded with Weapon slot (x1) 131 | -10/Materials | Upgraded with Weapon slot (x1) 208 | -10/Materials | Discovered new exit (range 5) 347 | -10/Materials | Upgraded with Utility slot (x1) 368 | -10/Materials | Discovered new exit (range 9) 377 | -10/Materials | Central database locked down 384 | -10/Materials | Identified exit to Mines 451 | -10/Materials | Discovered new exit (range 6) 467 | -10/Materials | Reached level 2 479 | -10/Materials | Identified exit to Materials 560 | -10/Materials | Build established: Skirmisher 567 | -10/Materials | Discovered exit to Materials (range 14) 676 | -10/Materials | Entered Mines 801 | -10/Mines | A weapon hastily lodged in a ceiling crevice suddenly fell to the ground 1087 | -10/Mines | Assisted by bots powering up and referring to "LRC-V3" 1237 | -10/Mines | Reached level 3 1259 | -10/Mines | Excavation squad dispatched 1259 | -10/Mines | A large section of the Mines collapsed 1264 | -10/Mines | Lost 3 allies 1287 | -10/Mines | Build established: Scavenger-Skirmisher 1509 | -10/Mines | Excavation squad dispatched 1759 | -10/Mines | Excavation squad dispatched 1957 | -10/Mines | Learned location of Storage (-7) 2009 | -10/Mines | Excavation squad dispatched 2176 | -10/Mines | Received a Rocket Launcher from a helpful Derelict 2196 | -10/Mines | Reached level 4 2228 | -10/Mines | Discovered exit to Materials (range 8) 2237 | -10/Mines | Discovered exit to Materials (range 10) 2259 | -10/Mines | Deemed a non-threat by the Exiles lab entrance 2260 | -10/Mines | Discovered new exit (range 5) 2263 | -10/Mines | Identified exit to Exiles 2278 | -10/Mines | Entered Materials 2280 | -9/Materials | Reached level 5 2432 | -9/Materials | Central database locked down 2455 | -9/Materials | Upgraded with Utility slot (x1) 2565 | -9/Materials | Reached level 6 2645 | -9/Materials | Discovered new exit (range 9) 2678 | -9/Materials | First assault squad dispatched 2684 | -9/Materials | Identified exit to Materials 2758 | -9/Materials | Destroyed 7 combat bots 2772 | -9/Materials | Reached level 7 2794 | -9/Materials | Build established: Hacker-Skirmisher 2907 | -9/Materials | Discovered exit to Materials (range 15) 2974 | -9/Materials | Entered another Materials area 2976 | -8/Materials | Reached level 8 3025 | -8/Materials | Upgraded with Propulsion slot (x1) 3069 | -8/Materials | Upgraded with Weapon slot (x1) 3337 | -8/Materials | Reached level 9 3537 | -8/Materials | Upgraded with Utility slot (x1) 3560 | -8/Materials | Discovered new exit (range 8) 3800 | -8/Materials | Garrison activated, responded to threat 3862 | -8/Materials | Identified exit to Garrison 3893 | -8/Materials | Entered Garrison 3895 | -8/Garrison | Reached level 10 3947 | -8/Garrison | Triggered checkpoint 4028 | -8/Garrison | Garrison Relay disabled 4071 | -8/Garrison | Triggered checkpoint 4087 | -8/Garrison | Reached level 11 4089 | -8/Garrison | Triggered checkpoint 4131 | -8/Garrison | Learned Materials security intel 4177 | -8/Garrison | Phase Generator disabled 4180 | -8/Garrison | Build established: Hacker-Gunner 4235 | -8/Garrison | Discovered new exit (range 70) 4235 | -8/Garrison | Discovered new exit (range 60) 4235 | -8/Garrison | Discovered new exit (range 34) 4267 | -8/Garrison | Triggered checkpoint 4381 | -8/Garrison | Triggered checkpoint 4412 | -8/Garrison | Upgraded with Propulsion slot (x1) 4456 | -8/Garrison | Garrison Relay disabled 4537 | -8/Garrison | Identified exit to Materials 4564 | -8/Garrison | Reached level 12 4687 | -8/Garrison | Triggered checkpoint 4946 | -8/Garrison | Triggered checkpoint 5031 | -8/Garrison | Found Powered Armor 5034 | -8/Garrison | Found Powered Armor 5101 | -8/Garrison | Garrison Relay disabled 5113 | -8/Garrison | Garrison Relay disabled 5212 | -8/Garrison | Attempted to access garrison exit controls, blocked by remote lockdown 5442 | -8/Garrison | Build established: Hacker-Tank 5497 | -8/Garrison | Entered Materials 5497 | -8/Materials | Accompanied by 2 allies 5563 | -8/Materials | Reached level 13 5744 | -8/Materials | Upgraded with Utility slot (x1) 5772 | -8/Materials | Upgraded with Weapon slot (x1) 5778 | -8/Materials | Upgraded with Weapon slot (x1) 5791 | -8/Materials | Upgraded with Power slot (x1) 5890 | -8/Materials | Upgraded with Weapon slot (x1) 5927 | -8/Materials | Upgraded with Utility slot (x1) 6074 | -8/Materials | Build established: Hacker-Executioner 6297 | -8/Materials | First assault squad dispatched 6452 | -8/Materials | Discovered new exit (range 12) 6455 | -8/Materials | Reached level 14 6559 | -8/Materials | Identified exit to Factory 6669 | -8/Materials | Entered Factory 6670 | -7/Factory | Identified exit to Storage 6728 | -7/Factory | Garrison activated, responded to threat 6747 | -7/Factory | Reached level 15 7128 | -7/Factory | Discovered new exit (range 15) 7148 | -7/Factory | Identified exit to Factory 7410 | -7/Factory | Found Prototype Launcher 7410 | -7/Factory | Identified Rocket Array 7614 | -7/Factory | Discovered exit to Storage (range 6) 7946 | -7/Factory | Build established: Hacker-Assassin 8046 | -7/Factory | Identified exit to Lower Caves 8242 | -7/Factory | Entered Lower Caves 8249 | -7/Lower Caves | Build established: Hacker-Executioner 8259 | -7/Lower Caves | Met a Warlord Commander 8260 | -7/Lower Caves | Learned location of Warlord (-5) 8261 | -7/Lower Caves | Warlord Commander delivered Encrypted Comm Array 8262 | -7/Lower Caves | Upgraded with Utility slot (x1) 8263 | -7/Lower Caves | Found Encrypted Comm Array 8591 | -7/Lower Caves | Attracted the attention of an 0b10 checkpoint 8873 | -7/Lower Caves | Discovered new exit (range 15) 8894 | -7/Lower Caves | Spotted B-75 Beast 8895 | -7/Lower Caves | Identified exit to Lower Caves 9001 | -7/Lower Caves | Reached level 16 9001 | -7/Lower Caves | Destroyed B-75 Beast 9217 | -7/Lower Caves | Entered another Lower Caves area 9244 | -7/Lower Caves | Learned location of Zion (-6) 9247 | -7/Lower Caves | Learned location of 1 exit from Factory 9280 | -7/Lower Caves | Attacked by a delusional Derelict stockpiling Unaware 9406 | -7/Lower Caves | Discovered exit to Factory (range 5) 9502 | -7/Lower Caves | Learned 4 Factory zone layouts 9572 | -7/Lower Caves | Encountered a Warlord checkpoint 9672 | -7/Lower Caves | Found Alien Artifact 9735 | -7/Lower Caves | Discovered new exit (range 11) 9745 | -7/Lower Caves | Identified exit to Data Miner 9853 | -7/Lower Caves | Entered Data Miner 9853 | -7/Data Miner | Accompanied by 4 allies 9853 | -7/Data Miner | Discovered new exit (range 6) 9859 | -7/Data Miner | Identified exit to Proximity Caves 9878 | -7/Data Miner | Met Data Miner 9898 | -7/Data Miner | Learned location of Section 7 (-2) 9898 | -7/Data Miner | Acquired the access code to Warlord's prototype stash 9917 | -7/Data Miner | Received God Mode back door access code from Data Miner 9943 | -7/Data Miner | Entered Proximity Caves 9943 | -6/Proximity Caves | Accompanied by 4 allies 9945 | -6/Proximity Caves | Reached level 17 10212 | -6/Proximity Caves | Found Imp. Powered Armor 10217 | -6/Proximity Caves | Upgraded with Utility slot (x1) 10643 | -6/Proximity Caves | Discovered exit to Factory (range 10) 10689 | -6/Proximity Caves | Reached level 18 10774 | -6/Proximity Caves | Attracted the attention of an 0b10 outpost 10863 | -6/Proximity Caves | Core integrity fell below 50% 10889 | -6/Proximity Caves | Destroyed 15 combat bots 10941 | -6/Proximity Caves | Attracted the attention of an 0b10 checkpoint 11206 | -6/Proximity Caves | Entered Factory 11206 | -6/Factory | Accompanied by 4 allies 11207 | -6/Factory | Identified exit to Factory 11208 | -6/Factory | Reached level 19 11304 | -6/Factory | Joined by Warlord Ghost squad 11473 | -6/Factory | Identified exit to Lower Caves 11473 | -6/Factory | Identified exit to Extension 11522 | -6/Factory | Upgraded with Propulsion slot (x1) 11632 | -6/Factory | Upgraded with Propulsion slot (x1) 11752 | -6/Factory | Joined by Warlord Ghost squad 11799 | -6/Factory | Identified Core Expander 11800 | -6/Factory | Installed Core Expander, added new Propulsion slot 11893 | -6/Factory | Entered Extension 11893 | -6/Extension | Accompanied by 2 allies 11914 | -6/Extension | Build established: Hacker-Scout 12030 | -6/Extension | Reached level 20 12291 | -6/Extension | Rescued a captive Derelict 12291 | -6/Extension | Rescued a captive Derelict 12311 | -6/Extension | Rescued a captive Derelict 12535 | -6/Extension | Spotted B-75 Beast 12542 | -6/Extension | Allies destroyed B-75 Beast 12560 | -6/Extension | Core integrity fell below 50% 12566 | -6/Extension | Spotted B-75 Beast 12568 | -6/Extension | Disrupted transfer network 12569 | -6/Extension | Discovered exit to Factory (range 15) 12573 | -6/Extension | Allies destroyed B-75 Beast 12684 | -6/Extension | Lost 5 allies 12696 | -6/Extension | Rescued a captive Derelict 12943 | -6/Extension | First assault squad dispatched 13028 | -6/Extension | Reached level 21 13049 | -6/Extension | Destroyed 8 combat bots 13098 | -6/Extension | Discovered new exit (range 15) 13099 | -6/Extension | Discovered exit to Factory (range 15) 13146 | -6/Extension | Rescued a captive Derelict 13155 | -6/Extension | Rescued A7 13180 | -6/Extension | Rescued a captive Derelict 13180 | -6/Extension | Rescued a captive Derelict 13246 | -6/Extension | Identified exit to Cetus 13281 | -6/Extension | Entered Cetus 13281 | -6/Cetus | Accompanied by 11 allies (A7) 13286 | -6/Cetus | Acquired a Cetus Manufacturing Module code from A7 13300 | -6/Cetus | Spotted Cetus Guard 13300 | -6/Cetus | Spotted Cetus Guard 13301 | -6/Cetus | Destroyed Cetus Guard 13302 | -6/Cetus | Spotted Cetus Guard 13302 | -6/Cetus | Spotted Cetus Guard 13306 | -6/Cetus | Destroyed Cetus Guard 13306 | -6/Cetus | Destroyed Cetus Guard 13308 | -6/Cetus | Allies destroyed Cetus Guard 13343 | -6/Cetus | Started Cetus Manufacturing Module 13347 | -6/Cetus | Escorted A7 to Cetus Mainframe 13368 | -6/Cetus | Manufactured an Enhanced Grunt 13385 | -6/Cetus | Discovered new exit (range 16) 13393 | -6/Cetus | Manufactured an Enhanced Grunt 13418 | -6/Cetus | Manufactured an Enhanced Grunt 13430 | -6/Cetus | Discovered exit to Factory (range 24) 13438 | -6/Cetus | Spotted Cetus Guard 13440 | -6/Cetus | Spotted Cetus Guard 13440 | -6/Cetus | Spotted Cetus Guard 13442 | -6/Cetus | Destroyed Cetus Guard 13443 | -6/Cetus | Manufactured an Enhanced Grunt 13446 | -6/Cetus | Allies destroyed Cetus Guard 13448 | -6/Cetus | Allies destroyed Cetus Guard 13468 | -6/Cetus | Manufactured an Enhanced Grunt 13469 | -6/Cetus | Met Revision 17 13495 | -6/Cetus | Identified exit to Archives 13627 | -6/Cetus | Crushed by falling debris 13657 | -6/Cetus | Entered Archives 13657 | -6/Archives | Accompanied by 14 allies (A7) 13662 | -6/Archives | Received a hacking code to weaken MAIN.C 13685 | -6/Archives | Discovered new exit (range 15) 13698 | -6/Archives | Discovered exit to Factory (range 24) 13706 | -6/Archives | Build established: Commander-Scout 13825 | -6/Archives | Discovered new exit (range 16) 13833 | -6/Archives | Identified exit to Hub_04(d) 13931 | -6/Archives | Entered Hub_04(d) 13931 | -6/Hub_04(d) | Accompanied by 12 allies 13946 | -6/Hub_04(d) | Discovered exit to Factory (range 21) 14169 | -6/Hub_04(d) | Build established: Hacker-Scout 14197 | -6/Hub_04(d) | Discovered exit to Factory (range 10) 14210 | -6/Hub_04(d) | Joined by Warlord Ranger squad 14221 | -6/Hub_04(d) | Reached level 22 14243 | -6/Hub_04(d) | Lost 4 allies 14252 | -6/Hub_04(d) | Discovered exit to Factory (range 24) 14433 | -6/Hub_04(d) | Discovered exit to Factory (range 24) 14480 | -6/Hub_04(d) | Network Hub disabled 14507 | -6/Hub_04(d) | Spotted Lightning 14507 | -6/Hub_04(d) | Spotted Lightning 14530 | -6/Hub_04(d) | Spotted Lightning 14537 | -6/Hub_04(d) | Crushed by falling debris 14553 | -6/Hub_04(d) | Lost 3 allies 14581 | -6/Hub_04(d) | Core integrity fell below 20% 14585 | -6/Hub_04(d) | Network Hub disabled 14607 | -6/Hub_04(d) | Entered Factory 14608 | -5/Factory | Core integrity fell below 50% 14608 | -5/Factory | Core integrity fell below 20% 14649 | -5/Factory | Identified exit to Upper Caves 14649 | -5/Factory | Central database locked down 14756 | -5/Factory | Discovered new exit (range 16) 14796 | -5/Factory | Identified exit to Factory 14927 | -5/Factory | Fabricated Cmb. Gravmag System? 14989 | -5/Factory | Entered Upper Caves 15111 | -5/Upper Caves | Reached level 23 15496 | -5/Upper Caves | Discovered new exit (range 5) 15498 | -5/Upper Caves | Identified exit to Upper Caves 15531 | -5/Upper Caves | Attracted the attention of an 0b10 base 15711 | -5/Upper Caves | Entered another Upper Caves area 15722 | -5/Upper Caves | Learned Factory terminal intel 15775 | -5/Upper Caves | Spotted B-75 Beast 15836 | -5/Upper Caves | Discovered exit to Factory (range 10) 15993 | -5/Upper Caves | Encountered a Warlord checkpoint 16051 | -5/Upper Caves | Attracted the attention of an 0b10 checkpoint 16086 | -5/Upper Caves | Learned Factory garrison access intel 16132 | -5/Upper Caves | Attracted the attention of an 0b10 outpost 16368 | -5/Upper Caves | Discovered new exit (range 16) 16376 | -5/Upper Caves | Identified exit to Warlord 16395 | -5/Upper Caves | System corruption reached 10% 16395 | -5/Upper Caves | Found Alien Artifact 16404 | -5/Upper Caves | Entered Warlord 16423 | -5/Warlord | System corruption cleaned by Quarantine Array 16539 | -5/Warlord | Visited the Vortex Lab 16545 | -5/Warlord | Found Prototype Piercing Weapon 16545 | -5/Warlord | Identified Vortex Lance 16548 | -5/Warlord | Found Prototype Energy Cannon 16548 | -5/Warlord | Identified Vortex Driver 16552 | -5/Warlord | Found Prototype Energy Gun 16552 | -5/Warlord | Identified Vortex Shotgun 16555 | -5/Warlord | Found Vortex Shotgun 16558 | -5/Warlord | Warlord's base attacked by MAIN.C 16676 | -5/Warlord | Learned Armory emergency access door positions 16676 | -5/Warlord | Learned Research emergency access door positions 16678 | -5/Warlord | Learned 4 Research zone layouts 16679 | -5/Warlord | Learned Research security intel 16679 | -5/Warlord | Learned Armory repair station intel 16679 | -5/Warlord | Learned Research scanalyzer intel 16788 | -5/Warlord | Met Warlord 16794 | -5/Warlord | Opened Warlord's prototype stash 16807 | -5/Warlord | Found Prototype Reactor 16807 | -5/Warlord | Identified Vortex Chain Reactor 16811 | -5/Warlord | Found Prototype Device 16811 | -5/Warlord | Identified Exp. Phase Shifter 16827 | -5/Warlord | Found Prototype Device 16827 | -5/Warlord | Identified Exp. Focal Shield 16830 | -5/Warlord | Found Prototype Processor 16830 | -5/Warlord | Identified Spectral Analyzer 16908 | -5/Warlord | Warlord forces counterattacked 16930 | -5/Warlord | Spotted B-75 Beast 16930 | -5/Warlord | Spotted B-86 Titan 16934 | -5/Warlord | Spotted Striker 16975 | -5/Warlord | Lost 3 allies 16987 | -5/Warlord | Spotted Striker 16991 | -5/Warlord | Spotted Executioner 16995 | -5/Warlord | Attacked by Warlord forces 16996 | -5/Warlord | Spotted NC-U8I(B) 16996 | -5/Warlord | Spotted WK-V3E(B) 16996 | -5/Warlord | Spotted 1I-W37(g) 17001 | -5/Warlord | Reached level 24 17001 | -5/Warlord | Destroyed Executioner 17007 | -5/Warlord | Discovered new exit (range 17) 17007 | -5/Warlord | Spotted Executioner 17022 | -5/Warlord | Destroyed 8 combat bots 17025 | -5/Warlord | Lost 4 allies 17026 | -5/Warlord | Identified exit to Proximity Caves 17026 | -5/Warlord | Entered Proximity Caves 17032 | -4/Proximity Caves | Upgraded with Propulsion slot (x1) 17049 | -4/Proximity Caves | Spotted B-86 Titan 17195 | -4/Proximity Caves | Spotter reported a threat 17231 | -4/Proximity Caves | Received a Behemoth hack from an annoying Tinkerer 17256 | -4/Proximity Caves | Learned Research stockpile data 17275 | -4/Proximity Caves | Discovered exit to Factory (range 16) 17295 | -4/Proximity Caves | Entered Factory 17296 | -4/Factory | Loaded intel: 26 terminal locations 17297 | -4/Factory | Loaded intel: 4 garrison access locations 17381 | -4/Factory | Reached level 25 17405 | -4/Factory | Core integrity fell below 50% 17411 | -4/Factory | Identified exit to Upper Caves 17583 | -4/Factory | Entered Upper Caves 17586 | -4/Upper Caves | Learned location of 1 exit from Proximity Caves 17592 | -4/Upper Caves | Attacked by a delusional Derelict stockpiling parts 17706 | -4/Upper Caves | Attacked by a faux Warlord 17781 | -4/Upper Caves | Attracted the attention of an 0b10 checkpoint 17928 | -4/Upper Caves | Discovered new exit (range 6) 17931 | -4/Upper Caves | Identified exit to Upper Caves 18107 | -4/Upper Caves | Entered another Upper Caves area 18113 | -4/Upper Caves | Learned Research trap positions 18131 | -4/Upper Caves | Discovered new exit (range 18) 18138 | -4/Upper Caves | Identified exit to Research 18166 | -4/Upper Caves | Learned Research terminal intel 18173 | -4/Upper Caves | Found DCF Scrap (16 items) 18222 | -4/Upper Caves | Spotted B-86 Titan 18408 | -4/Upper Caves | Discovered new exit (range 6) 18412 | -4/Upper Caves | Identified exit to Zhirov 18413 | -4/Upper Caves | Entered Zhirov 18413 | -4/Zhirov | Discovered new exit (range 3) 18421 | -4/Zhirov | Met Zhirov 18428 | -4/Zhirov | Learned location of Quarantine (-3) 18428 | -4/Zhirov | Learned location of Testing (-2) 18428 | -4/Zhirov | Learned location of Command (-1) 18437 | -4/Zhirov | Zhirov requested help retrieving the SGEMP Prototype 18449 | -4/Zhirov | Found Alien Artifact 18449 | -4/Zhirov | Identified Integrated Dissipator 18449 | -4/Zhirov | Installed Integrated Dissipator, increased core heat dissipation (+20) 18490 | -4/Zhirov | Upgraded with Utility slot (x1) 18495 | -4/Zhirov | Found Alien Artifact 18519 | -4/Zhirov | Identified exit to Proximity Caves 18519 | -4/Zhirov | Entered Proximity Caves 18521 | -3/Proximity Caves | Reached level 26 18577 | -3/Proximity Caves | Attracted the attention of an 0b10 checkpoint 18750 | -3/Proximity Caves | Build established: Wizard-Scout 18770 | -3/Proximity Caves | Reached level 27 19015 | -3/Proximity Caves | Entered Research 19016 | -3/Research | Identified exit to Quarantine 19018 | -3/Research | Loaded intel: 87 trap records 19022 | -3/Research | Loaded intel: 23 terminal locations 19023 | -3/Research | Loaded intel: 6 scanalyzer locations 19215 | -3/Research | Revision forces began assault on 0b10 19261 | -3/Research | Reached level 28 19283 | -3/Research | Core integrity fell below 50% 19306 | -3/Research | Met up with Revision 17++ 19321 | -3/Research | Destroyed 7 combat bots 19514 | -3/Research | Identified Dimensional Node Initializer 19514 | -3/Research | Identified Transdimensional Reconstructor 19574 | -3/Research | Fabricated Exp. Signal Interpreter? 19715 | -3/Research | Research terminal network offline 19767 | -3/Research | Entered Quarantine 19769 | -3/Quarantine | Identified exit to Research 19804 | -3/Quarantine | Reached level 29 19880 | -3/Quarantine | Found Alien Energy Cannon 19880 | -3/Quarantine | Identified Core Cannon 20042 | -3/Quarantine | Cryocooling Duct disabled 20048 | -3/Quarantine | Cryocooling Duct disabled 20057 | -3/Quarantine | Ambient heat levels rising (+20) 20057 | -3/Quarantine | Non-combat units ordered to evacuate 20063 | -3/Quarantine | Ambient heat levels rising (+20) 20063 | -3/Quarantine | Combat units ordered to evacuate 20111 | -3/Quarantine | Initialized slip node 20151 | -3/Quarantine | Found Alien Artifact 20152 | -3/Quarantine | Identified Subatomic Replicator 20152 | -3/Quarantine | Used Subatomic Replicator to replicate Vortex Shotgun 20163 | -3/Quarantine | Quarantine Guard activated 20248 | -3/Quarantine | Destroyed Quarantine Guard 20260 | -3/Quarantine | Spotted Quarantine Guard 20261 | -3/Quarantine | Destroyed Quarantine Guard 20291 | -3/Quarantine | Spotted Alpha 7 20311 | -3/Quarantine | Destroyed Alpha 7 20371 | -3/Quarantine | Found Alien Impact Weapon 20395 | -3/Quarantine | Entered Research 20395 | -2/Research | Warlord forces began assault on 0b10 20397 | -2/Research | Reached level 30 20398 | -2/Research | Identified exit to Testing 20431 | -2/Research | Discovered new exit (range 16) 20484 | -2/Research | Fabricated Exp. Armor Integrity Analyzer? 20505 | -2/Research | Research machine network offline 20585 | -2/Research | Upgraded with Utility slot (x1) 20823 | -2/Research | Entered Testing 20825 | -2/Testing | Reached level 31 20879 | -2/Testing | Found Prototype Energy Cannon 20879 | -2/Testing | Identified Imp. Potential Cannon 20906 | -2/Testing | Found Prototype Hackware 20906 | -2/Testing | Identified System Mapper 20931 | -2/Testing | Found Prototype Launcher 20931 | -2/Testing | Identified Gui. Micro-nuke Launcher 20955 | -2/Testing | Spotted PX-YV64QLBIMA 20973 | -2/Testing | Found Prototype Energy Gun 20973 | -2/Testing | Identified Hyp. EM Gauss Rifle 21043 | -2/Testing | Found Prototype Processor 21043 | -2/Testing | Identified Exp. Melee Analysis Suite 21055 | -2/Testing | Found Prototype Launcher 21055 | -2/Testing | Identified Ragnarok Missile Launcher 21066 | -2/Testing | Identified exit to Access 21118 | -2/Testing | Found Prototype Device 21118 | -2/Testing | Identified Exp. Hardlight Generator 21144 | -2/Testing | Found Prototype Energy Gun 21144 | -2/Testing | Identified Tachyon Dispersion Ray 21304 | -2/Testing | Found Prototype Energy Cannon 21304 | -2/Testing | Identified Null Cannon 21325 | -2/Testing | Found Prototype Ballistic Cannon 21325 | -2/Testing | Identified Perforator 21503 | -2/Testing | Destroyed 7 combat bots 21600 | -2/Testing | Found Prototype Protection 21600 | -2/Testing | Identified SHELL Armor 21653 | -2/Testing | Entered Access 21655 | -1/Access | Reached level 32 21655 | -1/Access | Reached level 33 21658 | -1/Access | Identified exit to Surface 21741 | -1/Access | Spotted B-99 Colossus 21745 | -1/Access | Core integrity fell below 50% 21749 | *** | Escaped! Last Messages --------------- 21742_ Terminal disabled. 21742_ Penetrated by Slug. 21744_ Beam penetrates G-73 Enforcer. 21744_ G-73 Enforcer suffers critical hit (Destroy). 21744_ G-73 Enforcer destroyed. 21744_ Beam penetrates B-99 Colossus. 21744_ B-99 Colossus suffers critical hit (Destroy). 21744_ Destroyed Arm. Heavy Treads. 21744_ Beam penetrates B-99 Colossus. 21746_ Beam penetrates G-73 Enforcer. 21746_ G-73 Enforcer suffers critical hit (Destroy). 21746_ G-73 Enforcer destroyed. 21746_ Beam penetrates B-99 Colossus. 21746_ B-99 Colossus suffers critical hit (Destroy). 21746_ Destroyed Arm. Heavy Treads. 21746_ Beam penetrates B-99 Colossus. 21746_ Knocked back. 21746_ Penetrated by Slug. 21746_ Slug penetrates Sealed Heavy Doors. 21747_ B-99 Colossus activates siege mode. Map ----- +----------------------------------------------------+ | ###?#?##?#### ##?? ? ? ? ? ??? ??????????????? | | #??#??????### ##? ? ?? ?? ? ??????????????????? | | ???###?#?##?# ##? ?? ?????? ??????????????? | | ?#??##?###### ###########?#??#?#?????????????????? | | ????#?###?# u ?????? ???????????? | | ?#??####?## km ?? ?????????????????? | | ??##?##?#?# ##############?##?#+??#?????????????? | | ???#?###?## ##?##?#?##??##????#?????????????????? | | ?#######?## #??#?######?##?####??? ??? ?????????? | | ? ! # ##?#?######?###??## ? ????? ???????? | | ? ?# #??#?#####?##?#?#?? ? ?????????????? | | # " # ##??#?###?#######?# ???? ???????????? | | # """ # #?#?##?##??#?##?##?? "???"? ?"??????? | | # """ # ##?#???##???####?#???????"? ???? ???? | | # " + ####?#?##?#??#?#?## ??"""???? w ????? | | # # #???###???#####???? ???? ?? ????????? | | # ! # #?#???#??##?#????????? ?? ? ????????? | | ########### #?#?#??#?###??#??###??????????#?????? | | #????##?### k#?????###?##??###???###?????#???#???? | | ?#???#?#??# ####### ##########?#???#?#?????##???? | | #?#???#?#?# """T""" ""????? ??#???#???? | | #?#???#???# """ " % """"[ [? ?#???#??? | | ?###??###?# %%[%= %%??????????? | | ##????#?### """" ????? ? ??????? | | ##???###### "" ""??? ?????? ?????? | | ##?####???# @" "??? ? ? ???????? | | ###???#?#?# "????? ????? ?????? | | ?#??#?#####k ""???BB????????#???? | | ??##?#????# ""?"?BB ???????? ??? | | ??####??### ""??????????? ?????? | | ??#????##?# ####### ##########????#?#????? ?? ??? | | ###??####?# #?##??###???##?#??????#?????????????? | | ???#??????# ??????#??#?##?#?#?#?????#????? ?????? | | ??? ????# #?#??????##?#??????#????????? ??????? | | ??? ? #^ ?#???????#?##??????????#?###????????? | | ??? ? ?? ?+ ?#?##?#??????#??????#??????????? ???? | | ????? ? # ?##???#?#?##??#??##??#?????#?#??????? | | ??? ??? # ?? ????? ???? ???? ????????? ???????? | | ??????? ? #? ?? ? ?? ?? ? ? ???? ? ? ??????????? | | "?? ?? ?? ?????????#???????##??????#?????????????? | | ??????????? ?##??#????#?????##???#??#????#???????? | | ??"???????? ??#??#???????#?##??#?????????????????? | | ???????? ??????#?##???#????#?????????##?????????? | | ??????????? ?????????????#???#???#???????????????? | | ??????? ??? ? ? ? ??????????#??#??Y?????????????? | | ?????????????????????? ?#??#???????#?????????????? | | ??????????? ?#?????? ????????????????????????????? | | ??????????????#???????? ???#??? ?????????????????? | | ?????????????#??????????#????? ??????????????????? | | ?????????????????????????????????????????????????? | +----------------------------------------------------+ Best States ------------- Heat Dissipation 99 Energy Generation 62 Energy Capacity 965 Matter Stores 300 Matter Capacity 300 Sight Range 24 Robot Scan Range 26 Terrain Scan Range 24 Terrain Scan Density 310 Jamming Range 16 Power Amplification 40 Armor Coverage 800 Weapon Cycling 15 Phase Shifting 20 Evasion (%) 77 Targeting Accuracy 8 Launcher Accuracy 20 Armor Integrity Analysis 50 Recoil Reduction 2 Energy Filtering 50 Particle Charging 20 Kinecelleration 30 Offensive Hacking 66 Defensive Hacking 15 Item Schematics ----------------- Cmb. Gravmag System | -7/Data Miner | Free Exp. Targeting Computer | -7/Data Miner | Free Combat Drone Bay | -7/Data Miner | Free Lgt. Regenerative Plating | -7/Data Miner | Free Cld. Aerolev Unit | -7/Data Miner | Free Imp. Lightning Gun | -7/Data Miner | Free Antigrav System | -7/Data Miner | Free Adv. Shield Generator | -7/Data Miner | Free Adv. Plasma Cannon | -7/Data Miner | Free Magnetic Acceleration Cannon | -7/Data Miner | Free Lrn. Proton Cannon | -7/Data Miner | Free Hvy. Gauss Cannon | -7/Data Miner | Free HERF Cannon | -7/Data Miner | Free Assault Drone Bay | -4/Zhirov | Free Exp. Heat Sink | -4/Zhirov | Free Exp. Optical Array | -4/Zhirov | Free Imp. Arc Thrower | -4/Zhirov | Free Exp. Signal Interpreter | -3/Research | Hacked Exp. Terrain Scanner | -3/Research | Hacked Exp. System Shield | -3/Quarantine | Archive Gravity Neutralizer | -3/Quarantine | Archive Helical Railgun | -3/Quarantine | Archive Exp. Thermal Shield | -3/Quarantine | Archive Hdn. Centrium Wheel | -3/Quarantine | Archive Exp. Armor Integrity Analyzer | -2/Research | Hacked Cmb. Linear Gravjet | -2/Research | Hacked Med. Regenerative Plating | -2/Testing | Hacked Hvy. Regenerative Plating | -2/Testing | Hacked Adv. Plasma Rifle | -2/Testing | Archive Robot Schematics ------------------ L-41 Fighter | -7/Data Miner | Free R-10 Processor | -7/Data Miner | Free H-66 Slayer | -7/Data Miner | Free M-28 Smith | -7/Data Miner | Free I-36 Angel | -7/Data Miner | Free B-74 Champion | -3/Quarantine | Archive X-82 Rainmaker | -2/Testing | Archive Fabricated ------------ Cmb. Gravmag System | x2 | -5/Factory Exp. Signal Interpreter | x1 | -3/Research Exp. Armor Integrity Analyzer | x1 | -2/Research Alien Tech Used ----------------- Core Expander Integrated Dissipator Core Cannon Dimensional Node Initializer Subatomic Replicator Achievements -------------- None Challenges ------------ None RPGLIKE | -11 -10 -10 -9 -8 -8 -8 -7 -7 -7 -7 -6 -6 -6 -6 -6 -6 -5 -5 -5 -5 -4 -4 -4 -4 -4 -3 -3 -3 -2 -2 -1 --------- Run | Yrd Mat Min Mat Mat Gar Mat Fac Low Low Dat Pro Fac Ext Cet Arc Hub Fac Upp Upp War Pro Fac Upp Upp Zhi Pro Res Qua Res Tes Acc Levels Raised 32 | . 1 2 3 2 3 2 1 1 . . 2 1 2 . . 1 . 1 . 1 . 1 . . . 2 1 1 1 1 2 XP Earned 51420 | 3000 1965 2892 4889 3578 4565 1806 1975 993 243 220 3299 1445 2204 518 300 987 682 818 611 552 657 1061 352 501 220 2062 1995 998 2058 1646 2328 XP Spent 42095 | . 3000 . 1910 2940 3000 9020 . 2000 750 . 2300 3500 2950 . 1000 220 . 105 . . 1700 400 . . 3150 . . 1250 2900 . . Upgrades 60 | . 8 . 6 5 4 8 . 1 1 . 1 5 8 . 1 2 . 3 . . 1 2 . . 2 . . 1 1 . . Power Slot 1 | . . . . . . 1 . . . . . . . . . . . . . . . . . . . . . . . . . Propulsion Slot 5 | . . . . 1 1 . . . . . . 2 . . . . . . . . 1 . . . . . . . . . . Utility Slot 9 | . 1 . 1 1 . 2 . 1 . . 1 . . . . . . . . . . . . . 1 . . . 1 . . Weapon Slot 6 | . 2 . . 1 . 3 . . . . . . . . . . . . . . . . . . . . . . . . . Core Integrity 3 | . . . . . . . . . . . . . . . . . . 3 . . . . . . . . . . . . . Heat Dissipation 9 | . . . 3 2 . 2 . . . . . . . . . . . . . . . 2 . . . . . . . . . Energy Generation 2 | . . . . . . . . . . . . 1 . . . . . . . . . . . . 1 . . . . . . Mass Support 2 | . . . . . . . . . . . . 2 . . . . . . . . . . . . . . . . . . . Inventory Capacity 5 | . 2 . . . . . . . 1 . . . . . 1 . . . . . . . . . . . . 1 . . . Sensor Range 4 | . . . . . . . . . . . . . 4 . . . . . . . . . . . . . . . . . . Terrain Scan Density 3 | . 1 . . . . . . . . . . . . . . 2 . . . . . . . . . . . . . . . Hack Attack % 4 | . 1 . 1 . 2 . . . . . . . . . . . . . . . . . . . . . . . . . . Hack Defense % 3 | . 1 . 1 . 1 . . . . . . . . . . . . . . . . . . . . . . . . . . TH Damage % 4 | . . . . . . . . . . . . . 4 . . . . . . . . . . . . . . . . . . Protomatter Created 6706 | . 287 263 262 160 289 465 228 194 . . 709 238 542 191 . 370 53 281 469 325 . 52 211 190 . 242 232 71 205 142 35 Integrity Restored 10829 | . 424 388 452 161 539 840 10 268 104 . 818 163 1544 572 97 492 . 399 918 77 . 156 267 477 . 121 691 200 459 192 . Core 7808 | . 327 300 378 136 380 508 6 97 95 . 583 53 1137 351 25 409 . 399 657 28 . 156 267 105 . 92 477 191 459 192 . Parts 3021 | . 97 88 74 25 159 332 4 171 9 . 235 110 407 221 72 83 . . 261 49 . . . 372 . 29 214 9 . . . Protomatter Decayed 5786 | . 51 118 61 68 143 188 188 72 40 . 347 154 62 226 23 410 53 15 90 493 . . 68 . . 159 1565 . 1192 . . Game ------ Seed PowerReactionReconstructor Manual? 0 Play Time 07:29:58 Cumulative 559.8 hours Start 2024.08.31 @ 21:44:28 End 2024.09.05 @ 18:38:09 Sessions 13 Manual Loads 0 Difficulty Rogue Special Mode Winter2019/RPGLIKE Game No. 130 Rogue 90 Adventurer 4 Explorer 36 Win Type 0 Total 39 Types 19/6/4/2/2/3/2/0/1 Lore% 71 Gallery% 85 Achievement% 89 Wizard Run 0 Options --------- Layout 0 ASCII 0 Keyboard 1 Movement Vi Keybinds 0 Fullscreen 1 Font 18/X11 Map View 112x50 Zoom Use 0% Tactical HUD 1 Map Filters NONE Filters NONE Steam 1 RUN: 955b5703-1fcb-4b94-8ee5-dc351560fd11